{"text_format":"1","workbook":"xlsx","n_sheets":30,"sheets":["General data","XBRL Errors","Index","Show","Hierarchies","T8076","T8097a","T8097b","T9001HK1","T9001HK2","T9001HK3","T9001HK4","T9001HK5","T9001HK6","T9007HK1","T9007HK2","T9007HK3","T9007HK4","T9013HK1","T9013HK2","T9013HK3","T9013HK4","T9013HK5","T9013HK6","T9013HK7","T9013HK8","T9017HK1","T9017HK2","T9017HK3","T9017HK4"],"not_rendered":{"charts":0,"images":3,"macros":1,"external_links":0,"defined_names":42,"comments":0,"pivot_tables":0},"unopened":[],"bounds":{"document_bytes":16777216,"sheet_cells":100000,"rows_first":2000,"rows_last":500,"rows_between":2000,"halvings":0,"cell_chars":16384,"cell_head_chars":4096},"cells_cut":0,"cells_raw":0,"read":"whole","date_system":"1900"}

{"sheet":"General data","index":0,"n_rows":247,"n_cols":23,"rows_kept":247,"cut":false,"hidden":false,"merged":[[0,6,2,6],[3,0,5,9]]}
[null,null,null,null,null,null,null,"Version:",null,"2.1.0.1",null,null,null,null,null,null,"Not applicable/All geographical areas","http://standards.iso.org/iso/17442","Module with all tables","BSI-ALL","01","EUR","NL BSI 2.1.0"]
[null,null,null,null,null,null,null,null,null,null,null,null,null,null,null,null,"AFGHANISTAN","http://standards.iso.org/iso/17442","Balance sheet items monthly reporting full","BSIM-FULL","12","AED"]
[null,null,null,null,null,null,null," ",null,null,null,null,null,null,null,null,"ALBANIA","http://standards.iso.org/iso/17442","Balance sheet items monthly reporting limited","BSIM-LTD","13","AFN"]
[null,null,null,null,null,null,null,null,null,null,null,null,null,null,null,null,"ALGERIA","http://standards.iso.org/iso/17442","Balance sheet items quarterly reporting full","BSIQ-FULL","14","ALL"]
[null,null,null,null,null,null,null,null,null,null,null,null,null,null,null,null,"AMERICAN SAMOA","http://standards.iso.org/iso/17442","Balance sheet items quarterly reporting limited","BSIQ-LTD","15","AMD"]
[null,null,null,null,null,null,null,null,null,null,null,null,null,null,null,null,"ANDORRA","http://standards.iso.org/iso/17442","Minimum reserve monthly","MRRM","16","ANG"]
[null,null,null,null,null,null,null,null,null,null,null,null,null,null,null,null,"ANGOLA","http://standards.iso.org/iso/17442","BSI-Systemic Investment Funds","BSI-SIF","17","AOA"]
[null,"General Data",null,null,null,null,null,null,null,null,null,"/General data label{B}","/General data value{E}",null,null,null,"ANGUILLA","http://standards.iso.org/iso/17442",null,null,"18","ARS"]
[null,null,null,null,null,null,null,null,null,null,null,null,null,null,null,null,"ANTARCTICA","http://standards.iso.org/iso/17442",null,null,"19","AUD"]
["*","Identifier",":","LEGALIDENTIFIER20POS",{"$f":"\"\"&D10","v":"LEGALIDENTIFIER20POS"},{"$f":"IF(D10=\"\",1,0)","v":0},null,null,null,null,null,null,null,null,null,null,"ANTIGUA AND BARBUDA","http://standards.iso.org/iso/17442",null,null,"20","AWG"]
[null,null,null,null,null,null,null,null,null,null,null,null,null,null,null,null,"ARGENTINA","http://standards.iso.org/iso/17442",null,null,"All","AZN"]
["*","Period start date",":","2020-01-01",{"$f":"D12","v":"2020-01-01"},{"$f":"IF(D12=\"\",1,0)","v":0},null,null,null,null,null,null,null,null,null,null,"ARMENIA","http://standards.iso.org/iso/17442",null,null,"All","BAM"]
[null,null,null,null,null,null,null,null,null,null,null,null,null,null,null,null,"ARUBA","http://standards.iso.org/iso/17442",null,null,null,"BBD"]
["*","Period end date",":","2020-12-31",{"$f":"D14","v":"2020-12-31"},{"$f":"IF(D14=\"\",1,0)","v":0},null,null,null,null,null,null,null,null,null,null,"AUSTRALIA","http://standards.iso.org/iso/17442",null,null,null,"BDT"]
[null,null,null,null,null,null,null,null,null,null,null,null,null,null,null,null,"AUSTRIA","http://standards.iso.org/iso/17442",null,null,null,"BGN"]
[null,"Country",":","Not applicable/All geographical areas",null,null,null,null,null,null,null,null,null,null,null,null,"AZERBAIJAN","http://standards.iso.org/iso/17442",null,null,null,"BHD"]
[null,null,null,null,null,null,null,null,null,null,null,null,null,null,null,null,"BAHAMAS","http://standards.iso.org/iso/17442",null,null,null,"BIF"]
["*","Filing Currency",":","EUR",{"$f":"\"\"&D18","v":"EUR"},{"$f":"IF(D18=\"\",1,0)","v":0},null,null,null,null,null,null,null,null,null,null,"BAHRAIN","http://standards.iso.org/iso/17442",null,null,null,"BMD"]
[null,null,null,null,null,null,null,null,null,null,null,null,null,null,null,null,"BANGLADESH","http://standards.iso.org/iso/17442",null,null,null,"BND"]
["*","Taxonomy",":","NL BSI 2.1.0",null,{"$f":"IF(D20=\"\",1,0)","v":0},null,null,null,null,null,null,null,null,null,null,"BARBADOS","http://standards.iso.org/iso/17442",null,null,null,"BOB"]
[null,null,null,null,null,null,null,null,null,null,null,null,null,null,null,null,"BELARUS","http://standards.iso.org/iso/17442",null,null,null,"BRL"]
["*","Module",":","Module with all tables",{"$f":"IFERROR(VLOOKUP(D22,S:T,2,FALSE),\"\")","v":"BSI-ALL"},{"$f":"IF(D22=\"\",1,0)","v":0},null,null,null,null,null,null,null,null,null,null,"BELGIUM","http://www.swift.com",null,null,null,"BSD"]
[null,null,null,null,null,null,null,null,null,null,null,null,null,null,null,null,"BELIZE","http://standards.iso.org/iso/17442",null,null,null,"BTN"]
[null,null,null,null,null,null,null,null,null,null,null,null,null,null,null,null,"BENIN","http://standards.iso.org/iso/17442",null,null,null,"BWP"]
[null,"Advanced Requirements",null,null,null,null,null,null,null,null,null,null,null,null,null,null,"BERMUDA","http://standards.iso.org/iso/17442",null,null,null,"BYN"]
[null,null,null,null,null,null,null,null,null,null,null,null,null,null,null,null,"BHUTAN","http://standards.iso.org/iso/17442",null,null,null,"BZD"]
[null,"Identifier scheme",":",{"$f":"IFERROR(VLOOKUP(D16,Q:R,2,FALSE),R1)","v":"http://standards.iso.org/iso/17442"},{"$f":"D27","v":"http://standards.iso.org/iso/17442"},null,null,null,null,null,null,null,null,null,null,null,"BOLIVIA, PLURINATIONAL STATE OF","http://standards.iso.org/iso/17442",null,null,null,"CAD"]
[null,null,null,null,null,null,null,null,null,null,null,null,null,null,null,null,"BRAZIL","http://standards.iso.org/iso/17442",null,null,null,"COP"]
[null,"Monetary decimals",":",null,null,null,null,null,null,null,null,null,null,null,null,null,"BRITISH INDIAN OCEAN TERRITORY","http://standards.iso.org/iso/17442",null,null,null,"CRC"]
[null,null,null,null,null,null,null,null,null,null,null,null,null,null,null,null,"BRUNEI DARUSSALAM","http://standards.iso.org/iso/17442",null,null,null,"CUC"]
[null,"Monetary precision",":",-3,null,{"$f":" 0.5 * 10^(-1 * PP_MonetaryPrecision)","v":500},null,null,null,null,null,null,null,null,null,null,"BULGARIA","http://standards.iso.org/iso/17442",null,null,null,"CUP"]
[null,null,null,null,null,null,null,null,null,null,null,null,null,null,null,null,"BURKINA FASO","http://standards.iso.org/iso/17442",null,null,null,"CVE"]
[null,"Pure decimals",":",4,null,{"$f":" 0.5 * 10^(-1 * PP_DecimalPrecision)","v":5.0000000000000002E-5},null,null,null,null,null,null,null,null,null,null,"BURUNDI","http://standards.iso.org/iso/17442",null,null,null,"CZK"]
[null,null,null,null,null,null,null,null,null,null,null,null,null,null,null,null,"CAMBODIA","http://standards.iso.org/iso/17442",null,null,null,"DJF"]
[null,"Pure precision",":",4,null,null,null,"#XBRL made simple!",null,null,null,null,null,null,null,null,"CAMEROON","http://standards.iso.org/iso/17442",null,null,null,"DKK"]
[null,null,null,null,null,null,null,null,null,null,null,null,null,null,null,null,"CANADA","http://standards.iso.org/iso/17442",null,null,null,"DOP"]
[null,"Concatenate Errors",":",false,null,null,null,null,null,null,null,null,null,null,null,null,"CAPE VERDE","http://standards.iso.org/iso/17442",null,null,null,"DZD"]
[null,"Additional Requirements (Country specific)",null,null,null,null,null,null,null,null,null,null,null,null,null,null,"CAYMAN ISLANDS","http://standards.iso.org/iso/17442",null,null,null,"EGP"]
["BELGIUM",null,null,null,null,null,null,null,null,null,null,null,null,null,null,null,"CENTRAL AFRICAN REPUBLIC","http://standards.iso.org/iso/17442",null,null,null,"ERN"]
["BELGIUM","Post Parsing features",":",null,null,{"$f":"IF(AND(A40=PP_Country,D40=\"\"),1,0)","v":0},null,null,null,null,null,null,null,null,null,null,"CHAD","http://standards.iso.org/iso/17442",null,null,null,"ETB"]
["BELGIUM",null,null,null,null,null,null,null,null,null,null,null,null,null,null,null,"CHILE","http://standards.iso.org/iso/17442",null,null,null,"EUR"]
["BELGIUM","Reporter e-mail",":",null,null,null,null,null,null,null,null,null,null,null,null,null,"CHINA","http://standards.iso.org/iso/17442",null,null,null,"FJD"]
["BELGIUM",null,null,null,null,null,null,null,null,null,null,null,null,null,null,null,"CHRISTMAS ISLAND","http://standards.iso.org/iso/17442",null,null,null,"FKP"]
["BELGIUM","Declarer Type",":",null,{"$f":"\"\"&D44","v":""},{"$f":"IF(AND(A44=PP_Country,D44=\"\"),1,0)","v":0},null,null,null,null,null,null,null,null,null,null,"COCOS (KEELING) ISLANDS","http://standards.iso.org/iso/17442",null,null,null,"GBP"]
["BELGIUM",null,null,null,null,null,null,null,null,null,null,null,null,null,null,null,"COLOMBIA","http://standards.iso.org/iso/17442",null,null,null,"GEL"]
["BELGIUM","Domain",":",null,{"$f":"\"\"&D46","v":""},{"$f":"IF(AND(A46=PP_Country,D46=\"\"),1,0)","v":0},null,null,null,null,null,null,null,null,null,null,"COMOROS","http://standards.iso.org/iso/17442",null,null,null,"GGP"]
["BELGIUM",null,null,null,null,null,null,null,null,null,null,null,null,null,null,null,"CONGO","http://standards.iso.org/iso/17442",null,null,null,"GHS"]
[null,"ParsePort-specific parameters:",null,"SII_",null,null,null,null,null,null,null,null,null,null,null,null,"CONGO, THE DEMOCRATIC REPUBLIC OF THE","http://standards.iso.org/iso/17442",null,null,null,"GIP"]
[null,"Compress contexts",null,true,null,null,null,null,null,null,null,null,null,null,null,null,"COOK ISLANDS","http://standards.iso.org/iso/17442",null,null,null,"GMD"]
[null,"Language",null,"EN",null,null,null,null,null,null,null,null,null,null,null,null,"COSTA RICA","http://standards.iso.org/iso/17442",null,null,null,"GNF"]
[null,"Debug mode",null,false,null,null,null,null,null,null,null,null,null,null,null,null,"CÔTE D'IVOIRE","http://standards.iso.org/iso/17442",null,null,null,"GTQ"]
[null,"LookupValue fallback",null,false,null,null,null,null,null,null,null,null,null,null,null,null,"CROATIA","http://standards.iso.org/iso/17442",null,null,null,"GYD"]
[null,null,null,null,null,null,null,null,null,null,null,"//General data label{B}","//General data value{E}",null,null,null,"CUBA","http://standards.iso.org/iso/17442",null,null,null,"HKD"]
["BELGIUM",null,null,null,null,null,null,null,null,null,null,null,null,null,null,null,"CURAÇAO","http://standards.iso.org/iso/17442",null,null,null,"HNL"]
["BELGIUM",null,null,null,null,null,null,null,null,null,null,null,null,null,null,null,"CYPRUS","http://standards.iso.org/iso/17442",null,null,null,"HRK"]
[null,null,null,null,null,null,null,null,null,null,null,null,null,null,null,null,"CZECH REPUBLIC","http://standards.iso.org/iso/17442",null,null,null,"HTG"]
[null,null,null,null,null,null,null,null,null,null,null,null,null,null,null,null,"DENMARK","http://standards.iso.org/iso/17442",null,null,null,"HUF"]
[null,null,null,null,null,null,null,null,null,null,null,null,null,null,null,null,"DJIBOUTI","http://standards.iso.org/iso/17442",null,null,null,"IDR"]
[null,null,null,null,null,null,null,null,null,null,null,null,null,null,null,null,"DOMINICA","http://standards.iso.org/iso/17442",null,null,null,"ILS"]
[null,null,null,null,null,null,null,null,null,null,null,null,null,null,null,null,"DOMINICAN REPUBLIC","http://standards.iso.org/iso/17442",null,null,null,"IMP"]
[null,null,null,null,null,null,null,null,null,null,null,null,null,null,null,null,"ECUADOR","http://standards.iso.org/iso/17442",null,null,null,"INR"]
[null,null,null,null,null,null,null,null,null,null,null,null,null,null,null,null,"EGYPT","http://standards.iso.org/iso/17442",null,null,null,"IQD"]
[null,null,null,null,null,null,null,null,null,null,null,null,null,null,null,null,"EL SALVADOR","http://standards.iso.org/iso/17442",null,null,null,"IRR"]
[null,null,null,null,null,null,null,null,null,null,null,null,null,null,null,null,"EQUATORIAL GUINEA","http://standards.iso.org/iso/17442",null,null,null,"ISK"]
[null,null,null,null,null,null,null,null,null,null,null,null,null,null,null,null,"ERITREA","http://standards.iso.org/iso/17442",null,null,null,"JEP"]
[null,null,null,null,null,null,null,null,null,null,null,null,null,null,null,null,"ESTONIA","http://standards.iso.org/iso/17442",null,null,null,"JMD"]
[null,null,null,null,null,null,null,null,null,null,null,null,null,null,null,null,"ETHIOPIA","http://standards.iso.org/iso/17442",null,null,null,"JOD"]
[null,null,null,null,null,null,null,null,null,null,null,null,null,null,null,null,"FALKLAND ISLANDS (MALVINAS)","http://standards.iso.org/iso/17442",null,null,null,"JPY"]
[null,null,null,null,null,null,null,null,null,null,null,null,null,null,null,null,"FAROE ISLANDS","http://standards.iso.org/iso/17442",null,null,null,"KES"]
[null,null,null,null,null,null,null,null,null,null,null,null,null,null,null,null,"FIJI","http://standards.iso.org/iso/17442",null,null,null,"KGS"]
[null,null,null,null,null,null,null,null,null,null,null,null,null,null,null,null,"FINLAND","http://standards.iso.org/iso/17442",null,null,null,"KHR"]
[null,null,null,null,null,null,null,null,null,null,null,null,null,null,null,null,"FRANCE","http://standards.iso.org/iso/17442",null,null,null,"KMF"]
[null,null,null,null,null,null,null,null,null,null,null,null,null,null,null,null,"FRENCH GUIANA","http://standards.iso.org/iso/17442",null,null,null,"KPW"]
[null,null,null,null,null,null,null,null,null,null,null,null,null,null,null,null,"FRENCH POLYNESIA","http://standards.iso.org/iso/17442",null,null,null,"KRW"]
[null,null,null,null,null,null,null,null,null,null,null,null,null,null,null,null,"FRENCH SOUTHERN TERRITORIES","http://standards.iso.org/iso/17442",null,null,null,"KWD"]
[null,null,null,null,null,null,null,null,null,null,null,null,null,null,null,null,"GABON","http://standards.iso.org/iso/17442",null,null,null,"KYD"]
[null,null,null,null,null,null,null,null,null,null,null,null,null,null,null,null,"GAMBIA","http://standards.iso.org/iso/17442",null,null,null,"KZT"]
[null,null,null,null,null,null,null,null,null,null,null,null,null,null,null,null,"GEORGIA","http://standards.iso.org/iso/17442",null,null,null,"LAK"]
[null,null,null,null,null,null,null,null,null,null,null,null,null,null,null,null,"GERMANY","http://standards.iso.org/iso/17442",null,null,null,"LBP"]
[null,null,null,null,null,null,null,null,null,null,null,null,null,null,null,null,"GHANA","http://standards.iso.org/iso/17442",null,null,null,"LKR"]
[null,null,null,null,null,null,null,null,null,null,null,null,null,null,null,null,"GIBRALTAR","http://standards.iso.org/iso/17442",null,null,null,"LRD"]
[null,null,null,null,null,null,null,null,null,null,null,null,null,null,null,null,"GREECE","http://standards.iso.org/iso/17442",null,null,null,"LSL"]
[null,null,null,null,null,null,null,null,null,null,null,null,null,null,null,null,"GREENLAND","http://standards.iso.org/iso/17442",null,null,null,"LYD"]
[null,null,null,null,null,null,null,null,null,null,null,null,null,null,null,null,"GRENADA","http://standards.iso.org/iso/17442",null,null,null,"MAD"]
[null,null,null,null,null,null,null,null,null,null,null,null,null,null,null,null,"GUADELOUPE","http://standards.iso.org/iso/17442",null,null,null,"MDL"]
[null,null,null,null,null,null,null,null,null,null,null,null,null,null,null,null,"GUAM","http://standards.iso.org/iso/17442",null,null,null,"MGA"]
[null,null,null,null,null,null,null,null,null,null,null,null,null,null,null,null,"GUATEMALA","http://standards.iso.org/iso/17442",null,null,null,"MKD"]
[null,null,null,null,null,null,null,null,null,null,null,null,null,null,null,null,"GUERNSEY","http://standards.iso.org/iso/17442",null,null,null,"MMK"]
[null,null,null,null,null,null,null,null,null,null,null,null,null,null,null,null,"GUINEA","http://standards.iso.org/iso/17442",null,null,null,"MNT"]
[null,null,null,null,null,null,null,null,null,null,null,null,null,null,null,null,"GUINEA-BISSAU","http://standards.iso.org/iso/17442",null,null,null,"MOP"]
[null,null,null,null,null,null,null,null,null,null,null,null,null,null,null,null,"GUYANA","http://standards.iso.org/iso/17442",null,null,null,"MRO"]
[null,null,null,null,null,null,null,null,null,null,null,null,null,null,null,null,"HAITI","http://standards.iso.org/iso/17442",null,null,null,"MUR"]
[null,null,null,null,null,null,null,null,null,null,null,null,null,null,null,null,"HEARD ISLAND AND MCDONALD ISLANDS","http://standards.iso.org/iso/17442",null,null,null,"MVR"]
[null,null,null,null,null,null,null,null,null,null,null,null,null,null,null,null,"HOLY SEE (VATICAN CITY STATE)","http://standards.iso.org/iso/17442",null,null,null,"MWK"]
[null,null,null,null,null,null,null,null,null,null,null,null,null,null,null,null,"HONDURAS","http://standards.iso.org/iso/17442",null,null,null,"MXN"]
[null,null,null,null,null,null,null,null,null,null,null,null,null,null,null,null,"HONG KONG","http://standards.iso.org/iso/17442",null,null,null,"MYR"]
[null,null,null,null,null,null,null,null,null,null,null,null,null,null,null,null,"HUNGARY","http://standards.iso.org/iso/17442",null,null,null,"MZN"]
[null,null,null,null,null,null,null,null,null,null,null,null,null,null,null,null,"ICELAND","http://standards.iso.org/iso/17442",null,null,null,"NAD"]
[null,null,null,null,null,null,null,null,null,null,null,null,null,null,null,null,"INDIA","http://standards.iso.org/iso/17442",null,null,null,"NGN"]
[null,null,null,null,null,null,null,null,null,null,null,null,null,null,null,null,"INDONESIA","http://standards.iso.org/iso/17442",null,null,null,"NIO"]
[null,null,null,null,null,null,null,null,null,null,null,null,null,null,null,null,"IRAN, ISLAMIC REPUBLIC OF","http://standards.iso.org/iso/17442",null,null,null,"NOK"]
[null,null,null,null,null,null,null,null,null,null,null,null,null,null,null,null,"IRAQ","http://standards.iso.org/iso/17442",null,null,null,"NPR"]
[null,null,null,null,null,null,null,null,null,null,null,null,null,null,null,null,"IRELAND","http://standards.iso.org/iso/17442",null,null,null,"NZD"]
[null,null,null,null,null,null,null,null,null,null,null,null,null,null,null,null,"ISLE OF MAN","http://standards.iso.org/iso/17442",null,null,null,"OMR"]
[null,null,null,null,null,null,null,null,null,null,null,null,null,null,null,null,"ISRAEL","http://standards.iso.org/iso/17442",null,null,null,"PAB"]
[null,null,null,null,null,null,null,null,null,null,null,null,null,null,null,null,"ITALY","http://standards.iso.org/iso/17442",null,null,null,"PEN"]
[null,null,null,null,null,null,null,null,null,null,null,null,null,null,null,null,"JAMAICA","http://standards.iso.org/iso/17442",null,null,null,"PGK"]
[null,null,null,null,null,null,null,null,null,null,null,null,null,null,null,null,"JAPAN","http://standards.iso.org/iso/17442",null,null,null,"PHP"]
[null,null,null,null,null,null,null,null,null,null,null,null,null,null,null,null,"JERSEY","http://standards.iso.org/iso/17442",null,null,null,"PKR"]
[null,null,null,null,null,null,null,null,null,null,null,null,null,null,null,null,"JORDAN","http://standards.iso.org/iso/17442",null,null,null,"PLN"]
[null,null,null,null,null,null,null,null,null,null,null,null,null,null,null,null,"KAZAKHSTAN","http://standards.iso.org/iso/17442",null,null,null,"PYG"]
[null,null,null,null,null,null,null,null,null,null,null,null,null,null,null,null,"KENYA","http://standards.iso.org/iso/17442",null,null,null,"QAR"]
[null,null,null,null,null,null,null,null,null,null,null,null,null,null,null,null,"KIRIBATI","http://standards.iso.org/iso/17442",null,null,null,"RON"]
[null,null,null,null,null,null,null,null,null,null,null,null,null,null,null,null,"KOREA, DEMOCRATIC PEOPLE'S REPUBLIC OF","http://standards.iso.org/iso/17442",null,null,null,"RSD"]
[null,null,null,null,null,null,null,null,null,null,null,null,null,null,null,null,"KOREA, REPUBLIC OF","http://standards.iso.org/iso/17442",null,null,null,"RUB"]
[null,null,null,null,null,null,null,null,null,null,null,null,null,null,null,null,"KUWAIT","http://standards.iso.org/iso/17442",null,null,null,"RWF"]
[null,null,null,null,null,null,null,null,null,null,null,null,null,null,null,null,"KYRGYZSTAN","http://standards.iso.org/iso/17442",null,null,null,"SAR"]
[null,null,null,null,null,null,null,null,null,null,null,null,null,null,null,null,"LAO PEOPLE'S DEMOCRATIC REPUBLIC","http://standards.iso.org/iso/17442",null,null,null,"SBD"]
[null,null,null,null,null,null,null,null,null,null,null,null,null,null,null,null,"LATVIA","http://standards.iso.org/iso/17442",null,null,null,"SCR"]
[null,null,null,null,null,null,null,null,null,null,null,null,null,null,null,null,"LEBANON","http://standards.iso.org/iso/17442",null,null,null,"SDG"]
[null,null,null,null,null,null,null,null,null,null,null,null,null,null,null,null,"LESOTHO","http://standards.iso.org/iso/17442",null,null,null,"SEK"]
[null,null,null,null,null,null,null,null,null,null,null,null,null,null,null,null,"LIBERIA","http://standards.iso.org/iso/17442",null,null,null,"SGD"]
[null,null,null,null,null,null,null,null,null,null,null,null,null,null,null,null,"LIBYA","http://standards.iso.org/iso/17442",null,null,null,"SHP"]
[null,null,null,null,null,null,null,null,null,null,null,null,null,null,null,null,"LIECHTENSTEIN","http://standards.iso.org/iso/17442",null,null,null,"SLL"]
[null,null,null,null,null,null,null,null,null,null,null,null,null,null,null,null,"LITHUANIA","http://standards.iso.org/iso/17442",null,null,null,"SOS"]
[null,null,null,null,null,null,null,null,null,null,null,null,null,null,null,null,"LUXEMBOURG","http://www.cssf.lu",null,null,null,"SPL"]
[null,null,null,null,null,null,null,null,null,null,null,null,null,null,null,null,"MACAO","http://standards.iso.org/iso/17442",null,null,null,"SRD"]
[null,null,null,null,null,null,null,null,null,null,null,null,null,null,null,null,"MACEDONIA, THE FORMER YUGOSLAV REPUBLIC OF","http://standards.iso.org/iso/17442",null,null,null,"STD"]
[null,null,null,null,null,null,null,null,null,null,null,null,null,null,null,null,"MADAGASCAR","http://standards.iso.org/iso/17442",null,null,null,"SVC"]
[null,null,null,null,null,null,null,null,null,null,null,null,null,null,null,null,"MALAWI","http://standards.iso.org/iso/17442",null,null,null,"SYP"]
[null,null,null,null,null,null,null,null,null,null,null,null,null,null,null,null,"MALAYSIA","http://standards.iso.org/iso/17442",null,null,null,"SZL"]
[null,null,null,null,null,null,null,null,null,null,null,null,null,null,null,null,"MALDIVES","http://standards.iso.org/iso/17442",null,null,null,"THB"]
[null,null,null,null,null,null,null,null,null,null,null,null,null,null,null,null,"MALI","http://standards.iso.org/iso/17442",null,null,null,"TJS"]
[null,null,null,null,null,null,null,null,null,null,null,null,null,null,null,null,"MALTA","http://standards.iso.org/iso/17442",null,null,null,"TMT"]
[null,null,null,null,null,null,null,null,null,null,null,null,null,null,null,null,"MARSHALL ISLANDS","http://standards.iso.org/iso/17442",null,null,null,"TND"]
[null,null,null,null,null,null,null,null,null,null,null,null,null,null,null,null,"MARTINIQUE","http://standards.iso.org/iso/17442",null,null,null,"TOP"]
[null,null,null,null,null,null,null,null,null,null,null,null,null,null,null,null,"MAURITANIA","http://standards.iso.org/iso/17442",null,null,null,"TRY"]
[null,null,null,null,null,null,null,null,null,null,null,null,null,null,null,null,"MAURITIUS","http://standards.iso.org/iso/17442",null,null,null,"TTD"]
[null,null,null,null,null,null,null,null,null,null,null,null,null,null,null,null,"MAYOTTE","http://standards.iso.org/iso/17442",null,null,null,"TVD"]
[null,null,null,null,null,null,null,null,null,null,null,null,null,null,null,null,"MEXICO","http://standards.iso.org/iso/17442",null,null,null,"TWD"]
[null,null,null,null,null,null,null,null,null,null,null,null,null,null,null,null,"MICRONESIA, FEDERATED STATES OF","http://standards.iso.org/iso/17442",null,null,null,"TZS"]
[null,null,null,null,null,null,null,null,null,null,null,null,null,null,null,null,"MOLDOVA, REPUBLIC OF","http://standards.iso.org/iso/17442",null,null,null,"UAH"]
[null,null,null,null,null,null,null,null,null,null,null,null,null,null,null,null,"MONACO","http://standards.iso.org/iso/17442",null,null,null,"UGX"]
[null,null,null,null,null,null,null,null,null,null,null,null,null,null,null,null,"MONGOLIA","http://standards.iso.org/iso/17442",null,null,null,"USD"]
[null,null,null,null,null,null,null,null,null,null,null,null,null,null,null,null,"MONTENEGRO","http://standards.iso.org/iso/17442",null,null,null,"UYU"]
[null,null,null,null,null,null,null,null,null,null,null,null,null,null,null,null,"MONTSERRAT","http://standards.iso.org/iso/17442",null,null,null,"UZS"]
[null,null,null,null,null,null,null,null,null,null,null,null,null,null,null,null,"MOROCCO","http://standards.iso.org/iso/17442",null,null,null,"VEF"]
[null,null,null,null,null,null,null,null,null,null,null,null,null,null,null,null,"MOZAMBIQUE","http://standards.iso.org/iso/17442",null,null,null,"VND"]
[null,null,null,null,null,null,null,null,null,null,null,null,null,null,null,null,"MYANMAR","http://standards.iso.org/iso/17442",null,null,null,"VUV"]
[null,null,null,null,null,null,null,null,null,null,null,null,null,null,null,null,"NAMIBIA","http://standards.iso.org/iso/17442",null,null,null,"WST"]
[null,null,null,null,null,null,null,null,null,null,null,null,null,null,null,null,"NAURU","http://standards.iso.org/iso/17442",null,null,null,"XAF"]
[null,null,null,null,null,null,null,null,null,null,null,null,null,null,null,null,"NEPAL","http://standards.iso.org/iso/17442",null,null,null,"XCD"]
[null,null,null,null,null,null,null,null,null,null,null,null,null,null,null,null,"NETHERLANDS","http://standards.iso.org/iso/17442",null,null,null,"XDR"]
[null,null,null,null,null,null,null,null,null,null,null,null,null,null,null,null,"NEW CALEDONIA","http://standards.iso.org/iso/17442",null,null,null,"XOF"]
[null,null,null,null,null,null,null,null,null,null,null,null,null,null,null,null,"NEW ZEALAND","http://standards.iso.org/iso/17442",null,null,null,"XPF"]
[null,null,null,null,null,null,null,null,null,null,null,null,null,null,null,null,"NICARAGUA","http://standards.iso.org/iso/17442",null,null,null,"YER"]
[null,null,null,null,null,null,null,null,null,null,null,null,null,null,null,null,"NIGER","http://standards.iso.org/iso/17442",null,null,null,"ZAR"]
[null,null,null,null,null,null,null,null,null,null,null,null,null,null,null,null,"NIGERIA","http://standards.iso.org/iso/17442",null,null,null,"ZMW"]
[null,null,null,null,null,null,null,null,null,null,null,null,null,null,null,null,"NIUE","http://standards.iso.org/iso/17442",null,null,null,"ZWD"]
[null,null,null,null,null,null,null,null,null,null,null,null,null,null,null,null,"NORFOLK ISLAND","http://standards.iso.org/iso/17442"]
[null,null,null,null,null,null,null,null,null,null,null,null,null,null,null,null,"NORTHERN MARIANA ISLANDS","http://standards.iso.org/iso/17442"]
[null,null,null,null,null,null,null,null,null,null,null,null,null,null,null,null,"NORWAY","SC"]
[null,null,null,null,null,null,null,null,null,null,null,null,null,null,null,null,"OMAN","http://standards.iso.org/iso/17442"]
[null,null,null,null,null,null,null,null,null,null,null,null,null,null,null,null,"PAKISTAN","http://standards.iso.org/iso/17442"]
[null,null,null,null,null,null,null,null,null,null,null,null,null,null,null,null,"PALAU","http://standards.iso.org/iso/17442"]
[null,null,null,null,null,null,null,null,null,null,null,null,null,null,null,null,"PALESTINIAN TERRITORY, OCCUPIED","http://standards.iso.org/iso/17442"]
[null,null,null,null,null,null,null,null,null,null,null,null,null,null,null,null,"PANAMA","http://standards.iso.org/iso/17442"]
[null,null,null,null,null,null,null,null,null,null,null,null,null,null,null,null,"PAPUA NEW GUINEA","http://standards.iso.org/iso/17442"]
[null,null,null,null,null,null,null,null,null,null,null,null,null,null,null,null,"PARAGUAY","http://standards.iso.org/iso/17442"]
[null,null,null,null,null,null,null,null,null,null,null,null,null,null,null,null,"PERU","http://standards.iso.org/iso/17442"]
[null,null,null,null,null,null,null,null,null,null,null,null,null,null,null,null,"PHILIPPINES","http://standards.iso.org/iso/17442"]
[null,null,null,null,null,null,null,null,null,null,null,null,null,null,null,null,"PITCAIRN","http://standards.iso.org/iso/17442"]
[null,null,null,null,null,null,null,null,null,null,null,null,null,null,null,null,"POLAND","http://standards.iso.org/iso/17442"]
[null,null,null,null,null,null,null,null,null,null,null,null,null,null,null,null,"PORTUGAL","http://standards.iso.org/iso/17442"]
[null,null,null,null,null,null,null,null,null,null,null,null,null,null,null,null,"PUERTO RICO","http://standards.iso.org/iso/17442"]
[null,null,null,null,null,null,null,null,null,null,null,null,null,null,null,null,"QATAR","http://standards.iso.org/iso/17442"]
[null,null,null,null,null,null,null,null,null,null,null,null,null,null,null,null,"RÉUNION","http://standards.iso.org/iso/17442"]
[null,null,null,null,null,null,null,null,null,null,null,null,null,null,null,null,"ROMANIA","http://standards.iso.org/iso/17442"]
[null,null,null,null,null,null,null,null,null,null,null,null,null,null,null,null,"RUSSIAN FEDERATION","http://standards.iso.org/iso/17442"]
[null,null,null,null,null,null,null,null,null,null,null,null,null,null,null,null,"RWANDA","http://standards.iso.org/iso/17442"]
[null,null,null,null,null,null,null,null,null,null,null,null,null,null,null,null,"SAINT BARTHÉLEMY","http://standards.iso.org/iso/17442"]
[null,null,null,null,null,null,null,null,null,null,null,null,null,null,null,null,"SAINT HELENA, ASCENSION AND TRISTAN DA CUNHA","http://standards.iso.org/iso/17442"]
[null,null,null,null,null,null,null,null,null,null,null,null,null,null,null,null,"SAINT KITTS AND NEVIS","http://standards.iso.org/iso/17442"]
[null,null,null,null,null,null,null,null,null,null,null,null,null,null,null,null,"SAINT LUCIA","http://standards.iso.org/iso/17442"]
[null,null,null,null,null,null,null,null,null,null,null,null,null,null,null,null,"SAINT MARTIN (FRENCH PART)","http://standards.iso.org/iso/17442"]
[null,null,null,null,null,null,null,null,null,null,null,null,null,null,null,null,"SAINT PIERRE AND MIQUELON","http://standards.iso.org/iso/17442"]
[null,null,null,null,null,null,null,null,null,null,null,null,null,null,null,null,"SAINT VINCENT AND THE GRENADINES","http://standards.iso.org/iso/17442"]
[null,null,null,null,null,null,null,null,null,null,null,null,null,null,null,null,"SAMOA","http://standards.iso.org/iso/17442"]
[null,null,null,null,null,null,null,null,null,null,null,null,null,null,null,null,"SAN MARINO","http://standards.iso.org/iso/17442"]
[null,null,null,null,null,null,null,null,null,null,null,null,null,null,null,null,"SAO TOME AND PRINCIPE","http://standards.iso.org/iso/17442"]
[null,null,null,null,null,null,null,null,null,null,null,null,null,null,null,null,"SAUDI ARABIA","http://standards.iso.org/iso/17442"]
[null,null,null,null,null,null,null,null,null,null,null,null,null,null,null,null,"SENEGAL","http://standards.iso.org/iso/17442"]
[null,null,null,null,null,null,null,null,null,null,null,null,null,null,null,null,"SERBIA","http://standards.iso.org/iso/17442"]
[null,null,null,null,null,null,null,null,null,null,null,null,null,null,null,null,"SEYCHELLES","http://standards.iso.org/iso/17442"]
[null,null,null,null,null,null,null,null,null,null,null,null,null,null,null,null,"SIERRA LEONE","http://standards.iso.org/iso/17442"]
[null,null,null,null,null,null,null,null,null,null,null,null,null,null,null,null,"SINGAPORE","http://standards.iso.org/iso/17442"]
[null,null,null,null,null,null,null,null,null,null,null,null,null,null,null,null,"SINT MAARTEN (DUTCH PART)","http://standards.iso.org/iso/17442"]
[null,null,null,null,null,null,null,null,null,null,null,null,null,null,null,null,"SLOVAKIA","http://standards.iso.org/iso/17442"]
[null,null,null,null,null,null,null,null,null,null,null,null,null,null,null,null,"SLOVENIA","http://standards.iso.org/iso/17442"]
[null,null,null,null,null,null,null,null,null,null,null,null,null,null,null,null,"SOLOMON ISLANDS","http://standards.iso.org/iso/17442"]
[null,null,null,null,null,null,null,null,null,null,null,null,null,null,null,null,"SOMALIA","http://standards.iso.org/iso/17442"]
[null,null,null,null,null,null,null,null,null,null,null,null,null,null,null,null,"SOUTH AFRICA","http://standards.iso.org/iso/17442"]
[null,null,null,null,null,null,null,null,null,null,null,null,null,null,null,null,"SOUTH GEORGIA AND THE SOUTH SANDWICH ISLANDS","http://standards.iso.org/iso/17442"]
[null,null,null,null,null,null,null,null,null,null,null,null,null,null,null,null,"SOUTH SUDAN","http://standards.iso.org/iso/17442"]
[null,null,null,null,null,null,null,null,null,null,null,null,null,null,null,null,"SPAIN","http://standards.iso.org/iso/17442"]
[null,null,null,null,null,null,null,null,null,null,null,null,null,null,null,null,"SRI LANKA","http://standards.iso.org/iso/17442"]
[null,null,null,null,null,null,null,null,null,null,null,null,null,null,null,null,"SUDAN","http://standards.iso.org/iso/17442"]
[null,null,null,null,null,null,null,null,null,null,null,null,null,null,null,null,"SURINAME","http://standards.iso.org/iso/17442"]
[null,null,null,null,null,null,null,null,null,null,null,null,null,null,null,null,"SVALBARD AND JAN MAYEN","http://standards.iso.org/iso/17442"]
[null,null,null,null,null,null,null,null,null,null,null,null,null,null,null,null,"SWAZILAND","http://standards.iso.org/iso/17442"]
[null,null,null,null,null,null,null,null,null,null,null,null,null,null,null,null,"SWEDEN","http://www.fi.se/instnr"]
[null,null,null,null,null,null,null,null,null,null,null,null,null,null,null,null,"SWITZERLAND","http://standards.iso.org/iso/17442"]
[null,null,null,null,null,null,null,null,null,null,null,null,null,null,null,null,"SYRIAN ARAB REPUBLIC","http://standards.iso.org/iso/17442"]
[null,null,null,null,null,null,null,null,null,null,null,null,null,null,null,null,"TAIWAN, PROVINCE OF CHINA","http://standards.iso.org/iso/17442"]
[null,null,null,null,null,null,null,null,null,null,null,null,null,null,null,null,"TAJIKISTAN","http://standards.iso.org/iso/17442"]
[null,null,null,null,null,null,null,null,null,null,null,null,null,null,null,null,"TANZANIA, UNITED REPUBLIC OF","http://standards.iso.org/iso/17442"]
[null,null,null,null,null,null,null,null,null,null,null,null,null,null,null,null,"THAILAND","http://standards.iso.org/iso/17442"]
[null,null,null,null,null,null,null,null,null,null,null,null,null,null,null,null,"TIMOR-LESTE","http://standards.iso.org/iso/17442"]
[null,null,null,null,null,null,null,null,null,null,null,null,null,null,null,null,"TOGO","http://standards.iso.org/iso/17442"]
[null,null,null,null,null,null,null,null,null,null,null,null,null,null,null,null,"TOKELAU","http://standards.iso.org/iso/17442"]
[null,null,null,null,null,null,null,null,null,null,null,null,null,null,null,null,"TONGA","http://standards.iso.org/iso/17442"]
[null,null,null,null,null,null,null,null,null,null,null,null,null,null,null,null,"TRINIDAD AND TOBAGO","http://standards.iso.org/iso/17442"]
[null,null,null,null,null,null,null,null,null,null,null,null,null,null,null,null,"TUNISIA","http://standards.iso.org/iso/17442"]
[null,null,null,null,null,null,null,null,null,null,null,null,null,null,null,null,"TURKEY","http://standards.iso.org/iso/17442"]
[null,null,null,null,null,null,null,null,null,null,null,null,null,null,null,null,"TURKMENISTAN","http://standards.iso.org/iso/17442"]
[null,null,null,null,null,null,null,null,null,null,null,null,null,null,null,null,"TURKS AND CAICOS ISLANDS","http://standards.iso.org/iso/17442"]
[null,null,null,null,null,null,null,null,null,null,null,null,null,null,null,null,"TUVALU","http://standards.iso.org/iso/17442"]
[null,null,null,null,null,null,null,null,null,null,null,null,null,null,null,null,"UGANDA","http://standards.iso.org/iso/17442"]
[null,null,null,null,null,null,null,null,null,null,null,null,null,null,null,null,"UKRAINE","http://standards.iso.org/iso/17442"]
[null,null,null,null,null,null,null,null,null,null,null,null,null,null,null,null,"UNITED ARAB EMIRATES","http://standards.iso.org/iso/17442"]
[null,null,null,null,null,null,null,null,null,null,null,null,null,null,null,null,"UNITED KINGDOM","http://standards.iso.org/iso/17442"]
[null,null,null,null,null,null,null,null,null,null,null,null,null,null,null,null,"UNITED STATES","http://standards.iso.org/iso/17442"]
[null,null,null,null,null,null,null,null,null,null,null,null,null,null,null,null,"UNITED STATES MINOR OUTLYING ISLANDS","http://standards.iso.org/iso/17442"]
[null,null,null,null,null,null,null,null,null,null,null,null,null,null,null,null,"URUGUAY","http://standards.iso.org/iso/17442"]
[null,null,null,null,null,null,null,null,null,null,null,null,null,null,null,null,"UZBEKISTAN","http://standards.iso.org/iso/17442"]
[null,null,null,null,null,null,null,null,null,null,null,null,null,null,null,null,"VANUATU","http://standards.iso.org/iso/17442"]
[null,null,null,null,null,null,null,null,null,null,null,null,null,null,null,null,"VENEZUELA, BOLIVARIAN REPUBLIC OF","http://standards.iso.org/iso/17442"]
[null,null,null,null,null,null,null,null,null,null,null,null,null,null,null,null,"VIET NAM","http://standards.iso.org/iso/17442"]
[null,null,null,null,null,null,null,null,null,null,null,null,null,null,null,null,"VIRGIN ISLANDS, BRITISH","http://standards.iso.org/iso/17442"]
[null,null,null,null,null,null,null,null,null,null,null,null,null,null,null,null,"VIRGIN ISLANDS, U.S.","http://standards.iso.org/iso/17442"]
[null,null,null,null,null,null,null,null,null,null,null,null,null,null,null,null,"WALLIS AND FUTUNA","http://standards.iso.org/iso/17442"]
[null,null,null,null,null,null,null,null,null,null,null,null,null,null,null,null,"WESTERN SAHARA","http://standards.iso.org/iso/17442"]
[null,null,null,null,null,null,null,null,null,null,null,null,null,null,null,null,"YEMEN","http://standards.iso.org/iso/17442"]
[null,null,null,null,null,null,null,null,null,null,null,null,null,null,null,null,"ZAMBIA","http://standards.iso.org/iso/17442"]
[null,null,null,null,null,null,null,null,null,null,null,null,null,null,null,null,"ZIMBABWE","http://standards.iso.org/iso/17442"]
[null,null,null,null,null,null,null,null,null,null,null,null,null,null,null,null,"ÅLAND ISLANDS","http://standards.iso.org/iso/17442"]
[null,null,null,null,null,null,null,null,null,null,null,null,null,null,null,null,"Other Countries","http://standards.iso.org/iso/17442"]

{"sheet":"XBRL Errors","index":1,"n_rows":1,"n_cols":2,"rows_kept":1,"cut":false,"hidden":false,"merged":[]}
["Timestamp","Error"]

{"sheet":"Index","index":2,"n_rows":30,"n_cols":5,"rows_kept":30,"cut":false,"hidden":false,"merged":[[2,1,2,14]]}
[]
[]
[null,"Index"]
[]
[null,"Template Code","Template Name","Reporting Status"]
[null,"T8076","T8076 - Deposits with savings character for households in the Netherlands",null,{"$f":"IF($D$6=\"Reported\",\"@ForceFilingCode:true\",IF($D$6=\"Not Reported\",\"@ForceFilingCode:false\",\"\"))","v":""}]
[null,"T8097a","T8097a - Reporting of statistical positions for calculating minimum reserves",null,{"$f":"IF($D$7=\"Reported\",\"@ForceFilingCode:true\",IF($D$7=\"Not Reported\",\"@ForceFilingCode:false\",\"\"))","v":""}]
[null,"T8097b","T8097b - Reporting of statistical positions for calculating minimum reserves",null,{"$f":"IF($D$8=\"Reported\",\"@ForceFilingCode:true\",IF($D$8=\"Not Reported\",\"@ForceFilingCode:false\",\"\"))","v":""}]
[null,"T9001HK1","T9001HK1 - Debt positions owed by Dutch MFIs to counterparties in MFIs, government and private sector",null,{"$f":"IF($D$9=\"Reported\",\"@ForceFilingCode:true\",IF($D$9=\"Not Reported\",\"@ForceFilingCode:false\",\"\"))","v":""}]
[null,"T9001HK2","T9001HK2 - Securities held by Dutch MFIs",null,{"$f":"IF($D$10=\"Reported\",\"@ForceFilingCode:true\",IF($D$10=\"Not Reported\",\"@ForceFilingCode:false\",\"\"))","v":""}]
[null,"T9001HK3","T9001HK3 - Loans granted and deposits placed with over-coverage of real estate as collateral (LTV ratio <= 1)",null,{"$f":"IF($D$11=\"Reported\",\"@ForceFilingCode:true\",IF($D$11=\"Not Reported\",\"@ForceFilingCode:false\",\"\"))","v":""}]
[null,"T9001HK4","T9001HK4 - Loans granted and deposits placed in euros by Dutch MFIs, broken down into original and remaining maturities",null,{"$f":"IF($D$12=\"Reported\",\"@ForceFilingCode:true\",IF($D$12=\"Not Reported\",\"@ForceFilingCode:false\",\"\"))","v":""}]
[null,"T9001HK5","T9001HK5 - Business breakdown of the loans granted and deposits placed by non-financial corporations",null,{"$f":"IF($D$13=\"Reported\",\"@ForceFilingCode:true\",IF($D$13=\"Not Reported\",\"@ForceFilingCode:false\",\"\"))","v":""}]
[null,"T9001HK6","T9001HK6 - Total overview of the balance sheet items of Dutch MFIs",null,{"$f":"IF($D$14=\"Reported\",\"@ForceFilingCode:true\",IF($D$14=\"Not Reported\",\"@ForceFilingCode:false\",\"\"))","v":""}]
[null,"T9007HK1","T9007HK1 - Write-downs and other price revaluations, additional information for sector MFIs, government and private sector",null,{"$f":"IF($D$15=\"Reported\",\"@ForceFilingCode:true\",IF($D$15=\"Not Reported\",\"@ForceFilingCode:false\",\"\"))","v":""}]
[null,"T9007HK2","T9007HK2 - Price revaluations for loans granted with over-coverage of real estate as collateral (LTV ratio <= 1)",null,{"$f":"IF($D$16=\"Reported\",\"@ForceFilingCode:true\",IF($D$16=\"Not Reported\",\"@ForceFilingCode:false\",\"\"))","v":""}]
[null,"T9007HK3","T9007HK3 - Other flows of participations and loans, additional information for sector MFIs, government and private sector",null,{"$f":"IF($D$17=\"Reported\",\"@ForceFilingCode:true\",IF($D$17=\"Not Reported\",\"@ForceFilingCode:false\",\"\"))","v":""}]
[null,"T9007HK4","T9007HK4 - Total overview of write-downs and other price revaluations, additional information for total all sectors, not-allocated and grand total",null,{"$f":"IF($D$18=\"Reported\",\"@ForceFilingCode:true\",IF($D$18=\"Not Reported\",\"@ForceFilingCode:false\",\"\"))","v":""}]
[null,"T9013HK1","T9013HK1 - Gross flows (sold vs. repurchased) of securitised loans transferred to FVCs - Transactions with effect on reported position of loans in MFI balance sheet (‘derecognised’)",null,{"$f":"IF($D$19=\"Reported\",\"@ForceFilingCode:true\",IF($D$19=\"Not Reported\",\"@ForceFilingCode:false\",\"\"))","v":""}]
[null,"T9013HK2","T9013HK2 - Net flows (sales less repurchases) of securitised loans to FVCs - Transactions without effect on reported position of loans in MFI balance sheet (‘not derecognised’)",null,{"$f":"IF($D$20=\"Reported\",\"@ForceFilingCode:true\",IF($D$20=\"Not Reported\",\"@ForceFilingCode:false\",\"\"))","v":""}]
[null,"T9013HK3","T9013HK3 - Outstanding amounts of securitised loans transferred to FVCs (‘derecognised’) serviced by reporting agent",null,{"$f":"IF($D$21=\"Reported\",\"@ForceFilingCode:true\",IF($D$21=\"Not Reported\",\"@ForceFilingCode:false\",\"\"))","v":""}]
[null,"T9013HK4","T9013HK4 - Outstanding amounts of securitised loans not tranferred to FVCs ('not derecognised')",null,{"$f":"IF($D$22=\"Reported\",\"@ForceFilingCode:true\",IF($D$22=\"Not Reported\",\"@ForceFilingCode:false\",\"\"))","v":""}]
[null,"T9013HK5","T9013HK5 - Gross flows (sales/repurchases) of loans transferred to non-FVCs. With impact on reported stock.",null,{"$f":"IF($D$23=\"Reported\",\"@ForceFilingCode:true\",IF($D$23=\"Not Reported\",\"@ForceFilingCode:false\",\"\"))","v":""}]
[null,"T9013HK6","T9013HK6 - Outstanding amount of loans transferred to non-FVCs and serviced by reporting agent. With impact on reported stock",null,{"$f":"IF($D$24=\"Reported\",\"@ForceFilingCode:true\",IF($D$24=\"Not Reported\",\"@ForceFilingCode:false\",\"\"))","v":""}]
[null,"T9013HK7","T9013HK7 - Net flows (sales less repurchases) of loans transferred to non-FVCs. Without impact on reported stock",null,{"$f":"IF($D$25=\"Reported\",\"@ForceFilingCode:true\",IF($D$25=\"Not Reported\",\"@ForceFilingCode:false\",\"\"))","v":""}]
[null,"T9013HK8","T9013HK8 - Outstanding amount of loans transferred to non-FVCs. Without impact on reported stock.",null,{"$f":"IF($D$26=\"Reported\",\"@ForceFilingCode:true\",IF($D$26=\"Not Reported\",\"@ForceFilingCode:false\",\"\"))","v":""}]
[null,"T9017HK1","T9017HK1 - Write-downs and other price revaluations on outstanding amounts of securitised loans to FVC ('derecognised') and serviced by reporting agent",null,{"$f":"IF($D$27=\"Reported\",\"@ForceFilingCode:true\",IF($D$27=\"Not Reported\",\"@ForceFilingCode:false\",\"\"))","v":""}]
[null,"T9017HK2","T9017HK2 - Write-downs and other price revaluations on outstanding amounts of securitised loans not transferred to FVC ('not derecognised')",null,{"$f":"IF($D$28=\"Reported\",\"@ForceFilingCode:true\",IF($D$28=\"Not Reported\",\"@ForceFilingCode:false\",\"\"))","v":""}]
[null,"T9017HK3","T9017HK3 - Write-downs and other price revaluations on outstanding amounts of loans transferred to non-FVCs. With impact on reported stock",null,{"$f":"IF($D$29=\"Reported\",\"@ForceFilingCode:true\",IF($D$29=\"Not Reported\",\"@ForceFilingCode:false\",\"\"))","v":""}]
[null,"T9017HK4","T9017HK4 - Write-downs and other price revaluations on outstanding amounts of loans transferred to non-FVCs. Without impact on reported stock",null,{"$f":"IF($D$30=\"Reported\",\"@ForceFilingCode:true\",IF($D$30=\"Not Reported\",\"@ForceFilingCode:false\",\"\"))","v":""}]

{"sheet":"Show","index":3,"n_rows":52,"n_cols":9,"rows_kept":52,"cut":false,"hidden":true,"merged":[]}
["Sheet","Prefix","BSI-ALL","BSIM-FULL","BSIM-LTD","BSIQ-FULL","BSIQ-LTD","MRRM","BSI-SIF"]
["T8076",{"$f":"IF(AND(HLOOKUP('General data'!$E$22,$C$1:$J$2,2,FALSE)=\"X\",Index!D6=\"Reported\"),\"/\",\"!\")","v":"!"},"X","X","X","X"]
["T8097a",{"$f":"IF(AND(HLOOKUP('General data'!$E$22,$C$1:$J$3,3,FALSE)=\"X\",Index!D7=\"Reported\"),\"/\",\"!\")","v":"!"},"X",null,null,null,null,"X"]
["T8097b",{"$f":"IF(AND(HLOOKUP('General data'!$E$22,$C$1:$J$4,4,FALSE)=\"X\",Index!D8=\"Reported\"),\"/\",\"!\")","v":"!"},"X","X","X","X",null,null,"X"]
["T9001HK1",{"$f":"IF(AND(HLOOKUP('General data'!$E$22,$C$1:$J$5,5,FALSE)=\"X\",Index!D9=\"Reported\"),\"/\",\"!\")","v":"!"},"X","X","X","X","X",null,"X"]
["T9001HK2",{"$f":"IF(AND(HLOOKUP('General data'!$E$22,$C$1:$J$6,6,FALSE)=\"X\",Index!D10=\"Reported\"),\"/\",\"!\")","v":"!"},"X","X","X","X","X",null,"X"]
["T9001HK3",{"$f":"IF(AND(HLOOKUP('General data'!$E$22,$C$1:$J$7,7,FALSE)=\"X\",Index!D11=\"Reported\"),\"/\",\"!\")","v":"!"},"X","X","X","X"]
["T9001HK4",{"$f":"IF(AND(HLOOKUP('General data'!$E$22,$C$1:$J$8,8,FALSE)=\"X\",Index!D12=\"Reported\"),\"/\",\"!\")","v":"!"},"X","X","X","X"]
["T9001HK5",{"$f":"IF(AND(HLOOKUP('General data'!$E$22,$C$1:$J$9,9,FALSE)=\"X\",Index!D13=\"Reported\"),\"/\",\"!\")","v":"!"},"X","X"]
["T9001HK6",{"$f":"IF(AND(HLOOKUP('General data'!$E$22,$C$1:$J$10,10,FALSE)=\"X\",Index!D14=\"Reported\"),\"/\",\"!\")","v":"!"},"X","X","X","X","X",null,"X"]
["T9007HK1",{"$f":"IF(AND(HLOOKUP('General data'!$E$22,$C$1:$J$11,11,FALSE)=\"X\",Index!D15=\"Reported\"),\"/\",\"!\")","v":"!"},"X","X","X",null,null,null,"X"]
["T9007HK2",{"$f":"IF(AND(HLOOKUP('General data'!$E$22,$C$1:$J$12,12,FALSE)=\"X\",Index!D16=\"Reported\"),\"/\",\"!\")","v":"!"},"X","X","X"]
["T9007HK3",{"$f":"IF(AND(HLOOKUP('General data'!$E$22,$C$1:$J$13,13,FALSE)=\"X\",Index!D17=\"Reported\"),\"/\",\"!\")","v":"!"},"X","X","X",null,null,null,"X"]
["T9007HK4",{"$f":"IF(AND(HLOOKUP('General data'!$E$22,$C$1:$J$14,14,FALSE)=\"X\",Index!D18=\"Reported\"),\"/\",\"!\")","v":"!"},"X","X","X",null,null,null,"X"]
["T9013HK1",{"$f":"IF(AND(HLOOKUP('General data'!$E$22,$C$1:$J$15,15,FALSE)=\"X\",Index!D19=\"Reported\"),\"/\",\"!\")","v":"!"},"X","X","X","X"]
["T9013HK2",{"$f":"IF(AND(HLOOKUP('General data'!$E$22,$C$1:$J$16,16,FALSE)=\"X\",Index!D20=\"Reported\"),\"/\",\"!\")","v":"!"},"X","X","X","X"]
["T9013HK3",{"$f":"IF(AND(HLOOKUP('General data'!$E$22,$C$1:$J$17,17,FALSE)=\"X\",Index!D21=\"Reported\"),\"/\",\"!\")","v":"!"},"X","X","X","X"]
["T9013HK4",{"$f":"IF(AND(HLOOKUP('General data'!$E$22,$C$1:$J$18,18,FALSE)=\"X\",Index!D22=\"Reported\"),\"/\",\"!\")","v":"!"},"X","X","X","X"]
["T9013HK5",{"$f":"IF(AND(HLOOKUP('General data'!$E$22,$C$1:$J$19,19,FALSE)=\"X\",Index!D23=\"Reported\"),\"/\",\"!\")","v":"!"},"X","X","X","X"]
["T9013HK6",{"$f":"IF(AND(HLOOKUP('General data'!$E$22,$C$1:$J$20,20,FALSE)=\"X\",Index!D24=\"Reported\"),\"/\",\"!\")","v":"!"},"X","X","X","X"]
["T9013HK7",{"$f":"IF(AND(HLOOKUP('General data'!$E$22,$C$1:$J$21,21,FALSE)=\"X\",Index!D25=\"Reported\"),\"/\",\"!\")","v":"!"},"X","X","X","X"]
["T9013HK8",{"$f":"IF(AND(HLOOKUP('General data'!$E$22,$C$1:$J$22,22,FALSE)=\"X\",Index!D26=\"Reported\"),\"/\",\"!\")","v":"!"},"X","X","X","X"]
["T9017HK1",{"$f":"IF(AND(HLOOKUP('General data'!$E$22,$C$1:$J$23,23,FALSE)=\"X\",Index!D27=\"Reported\"),\"/\",\"!\")","v":"!"},"X","X","X","X"]
["T9017HK2",{"$f":"IF(AND(HLOOKUP('General data'!$E$22,$C$1:$J$24,24,FALSE)=\"X\",Index!D28=\"Reported\"),\"/\",\"!\")","v":"!"},"X","X","X","X"]
["T9017HK3",{"$f":"IF(AND(HLOOKUP('General data'!$E$22,$C$1:$J$25,25,FALSE)=\"X\",Index!D29=\"Reported\"),\"/\",\"!\")","v":"!"},"X","X","X","X"]
["T9017HK4",{"$f":"IF(AND(HLOOKUP('General data'!$E$22,$C$1:$J$26,26,FALSE)=\"X\",Index!D30=\"Reported\"),\"/\",\"!\")","v":"!"},"X","X","X","X"]
[]
[{"$f":"IF(Index!D6=\"Not Reported\",\"/T8076 Rows{Z}@ForceFilingCode:false\",\"\")","v":""},{"$f":"IF(Index!D6=\"Not Reported\",\"//T8076 Rows{Z}@ForceFilingCode:false\",\"\")","v":""}]
[{"$f":"IF(Index!D7=\"Not Reported\",\"/T8097a Rows{Z}@ForceFilingCode:false\",\"\")","v":""},{"$f":"IF(Index!D7=\"Not Reported\",\"//T8097a Rows{Z}@ForceFilingCode:false\",\"\")","v":""}]
[{"$f":"IF(Index!D8=\"Not Reported\",\"/T8097b Rows{Z}@ForceFilingCode:false\",\"\")","v":""},{"$f":"IF(Index!D8=\"Not Reported\",\"//T8097b Rows{Z}@ForceFilingCode:false\",\"\")","v":""}]
[{"$f":"IF(Index!D9=\"Not Reported\",\"/T9001HK1 Rows{Z}@ForceFilingCode:false\",\"\")","v":""},{"$f":"IF(Index!D9=\"Not Reported\",\"//T9001HK1 Rows{Z}@ForceFilingCode:false\",\"\")","v":""}]
[{"$f":"IF(Index!D10=\"Not Reported\",\"/T9001HK2 Rows{Z}@ForceFilingCode:false\",\"\")","v":""},{"$f":"IF(Index!D10=\"Not Reported\",\"//T9001HK2 Rows{Z}@ForceFilingCode:false\",\"\")","v":""}]
[{"$f":"IF(Index!D11=\"Not Reported\",\"/T9001HK3 Rows{Z}@ForceFilingCode:false\",\"\")","v":""},{"$f":"IF(Index!D11=\"Not Reported\",\"//T9001HK3 Rows{Z}@ForceFilingCode:false\",\"\")","v":""}]
[{"$f":"IF(Index!D12=\"Not Reported\",\"/T9001HK4 Rows{Z}@ForceFilingCode:false\",\"\")","v":""},{"$f":"IF(Index!D12=\"Not Reported\",\"//T9001HK4 Rows{Z}@ForceFilingCode:false\",\"\")","v":""}]
[{"$f":"IF(Index!D13=\"Not Reported\",\"/T9001HK5 Rows{Z}@ForceFilingCode:false\",\"\")","v":""},{"$f":"IF(Index!D13=\"Not Reported\",\"//T9001HK5 Rows{Z}@ForceFilingCode:false\",\"\")","v":""}]
[{"$f":"IF(Index!D14=\"Not Reported\",\"/T9001HK6 Rows{Z}@ForceFilingCode:false\",\"\")","v":""},{"$f":"IF(Index!D14=\"Not Reported\",\"//T9001HK6 Rows{Z}@ForceFilingCode:false\",\"\")","v":""}]
[{"$f":"IF(Index!D15=\"Not Reported\",\"/T9007HK1 Rows{Z}@ForceFilingCode:false\",\"\")","v":""},{"$f":"IF(Index!D15=\"Not Reported\",\"//T9007HK1 Rows{Z}@ForceFilingCode:false\",\"\")","v":""}]
[{"$f":"IF(Index!D16=\"Not Reported\",\"/T9007HK2 Rows{Z}@ForceFilingCode:false\",\"\")","v":""},{"$f":"IF(Index!D16=\"Not Reported\",\"//T9007HK2 Rows{Z}@ForceFilingCode:false\",\"\")","v":""}]
[{"$f":"IF(Index!D17=\"Not Reported\",\"/T9007HK3 Rows{Z}@ForceFilingCode:false\",\"\")","v":""},{"$f":"IF(Index!D17=\"Not Reported\",\"//T9007HK3 Rows{Z}@ForceFilingCode:false\",\"\")","v":""}]
[{"$f":"IF(Index!D18=\"Not Reported\",\"/T9007HK4 Rows{Z}@ForceFilingCode:false\",\"\")","v":""},{"$f":"IF(Index!D18=\"Not Reported\",\"//T9007HK4 Rows{Z}@ForceFilingCode:false\",\"\")","v":""}]
[{"$f":"IF(Index!D19=\"Not Reported\",\"/T9013HK1 Rows{Z}@ForceFilingCode:false\",\"\")","v":""},{"$f":"IF(Index!D19=\"Not Reported\",\"//T9013HK1 Rows{Z}@ForceFilingCode:false\",\"\")","v":""}]
[{"$f":"IF(Index!D20=\"Not Reported\",\"/T9013HK2 Rows{Z}@ForceFilingCode:false\",\"\")","v":""},{"$f":"IF(Index!D20=\"Not Reported\",\"//T9013HK2 Rows{Z}@ForceFilingCode:false\",\"\")","v":""}]
[{"$f":"IF(Index!D21=\"Not Reported\",\"/T9013HK3 Rows{Z}@ForceFilingCode:false\",\"\")","v":""},{"$f":"IF(Index!D21=\"Not Reported\",\"//T9013HK3 Rows{Z}@ForceFilingCode:false\",\"\")","v":""}]
[{"$f":"IF(Index!D22=\"Not Reported\",\"/T9013HK4 Rows{Z}@ForceFilingCode:false\",\"\")","v":""},{"$f":"IF(Index!D22=\"Not Reported\",\"//T9013HK4 Rows{Z}@ForceFilingCode:false\",\"\")","v":""}]
[{"$f":"IF(Index!D23=\"Not Reported\",\"/T9013HK5 Rows{Z}@ForceFilingCode:false\",\"\")","v":""},{"$f":"IF(Index!D23=\"Not Reported\",\"//T9013HK5 Rows{Z}@ForceFilingCode:false\",\"\")","v":""}]
[{"$f":"IF(Index!D24=\"Not Reported\",\"/T9013HK6 Rows{Z}@ForceFilingCode:false\",\"\")","v":""},{"$f":"IF(Index!D24=\"Not Reported\",\"//T9013HK6 Rows{Z}@ForceFilingCode:false\",\"\")","v":""}]
[{"$f":"IF(Index!D25=\"Not Reported\",\"/T9013HK7 Rows{Z}@ForceFilingCode:false\",\"\")","v":""},{"$f":"IF(Index!D25=\"Not Reported\",\"//T9013HK7 Rows{Z}@ForceFilingCode:false\",\"\")","v":""}]
[{"$f":"IF(Index!D26=\"Not Reported\",\"/T9013HK8 Rows{Z}@ForceFilingCode:false\",\"\")","v":""},{"$f":"IF(Index!D26=\"Not Reported\",\"//T9013HK8 Rows{Z}@ForceFilingCode:false\",\"\")","v":""}]
[{"$f":"IF(Index!D27=\"Not Reported\",\"/T9017HK1 Rows{Z}@ForceFilingCode:false\",\"\")","v":""},{"$f":"IF(Index!D27=\"Not Reported\",\"//T9017HK1 Rows{Z}@ForceFilingCode:false\",\"\")","v":""}]
[{"$f":"IF(Index!D28=\"Not Reported\",\"/T9017HK2 Rows{Z}@ForceFilingCode:false\",\"\")","v":""},{"$f":"IF(Index!D28=\"Not Reported\",\"//T9017HK2 Rows{Z}@ForceFilingCode:false\",\"\")","v":""}]
[{"$f":"IF(Index!D29=\"Not Reported\",\"/T9017HK3 Rows{Z}@ForceFilingCode:false\",\"\")","v":""},{"$f":"IF(Index!D29=\"Not Reported\",\"//T9017HK3 Rows{Z}@ForceFilingCode:false\",\"\")","v":""}]
[{"$f":"IF(Index!D30=\"Not Reported\",\"/T9017HK4 Rows{Z}@ForceFilingCode:false\",\"\")","v":""},{"$f":"IF(Index!D30=\"Not Reported\",\"//T9017HK4 Rows{Z}@ForceFilingCode:false\",\"\")","v":""}]

{"sheet":"Hierarchies","index":4,"n_rows":264,"n_cols":14,"rows_kept":264,"cut":false,"hidden":true,"merged":[]}
["hier_dom030_017","hier_dom030_017","hier_dom030_003","hier_dom030_003","hier_dom031_001","hier_dom031_001","hier_dom030_028","hier_dom030_028","hier_dom001_003","hier_dom001_003","hier_dom030_016","hier_dom030_016","hier_dom008_002","hier_dom008_002"]
["Not applicable / All or Total","Not applicable / All or Total","Not applicable / All or Total","Not applicable / All or Total","Not applicable / All or Total","Not applicable / All or Total","Not applicable / All or Total","Not applicable / All or Total","Not applicable / All or Total","Not applicable / All or Total","Not applicable / All or Total","Not applicable / All or Total","Not applicable / All or Total","Not applicable / All or Total"]
["Afghanistan","Afghanistan","Netherlands","Netherlands","Sales","Sales","Austria","Austria","Acting as servicer","Acting as servicer","Netherlands","Netherlands","MFI's","MFI's"]
["Albania","Albania","Rest of the euro area","Rest of the euro area","Repurchase","Repurchase","Belgium","Belgium","Not acting as servicer","Not acting as servicer","Rest of the euro area","Rest of the euro area","Non special purpose vehicles (SPV's) non MFI's","Non special purpose vehicles (SPV's) non MFI's"]
["Algeria","Algeria","Rest of the world (Outside EMU area)","Rest of the world (Outside EMU area)",null,null,"Croatia","Croatia",null,null,"Rest of the world (Outside EMU area)","Rest of the world (Outside EMU area)"]
["American Samoa (East)","American Samoa (East)",null,null,null,null,"Cyprus","Cyprus"]
["Andorra","Andorra",null,null,null,null,"Estonia","Estonia"]
["Angola","Angola",null,null,null,null,"Finland","Finland"]
["Anguilla","Anguilla",null,null,null,null,"France","France"]
["Antarctica","Antarctica",null,null,null,null,"French Guiana","French Guiana"]
["Antigua and Barbuda","Antigua and Barbuda",null,null,null,null,"French Southern Territories","French Southern Territories"]
["Argentina","Argentina",null,null,null,null,"Germany","Germany"]
["Armenia","Armenia",null,null,null,null,"Greece","Greece"]
["Aruba","Aruba",null,null,null,null,"Guadeloupe","Guadeloupe"]
["Australia","Australia",null,null,null,null,"Ireland","Ireland"]
["Austria","Austria",null,null,null,null,"Italy","Italy"]
["Azerbaijan","Azerbaijan",null,null,null,null,"Latvia","Latvia"]
["Bahamas","Bahamas",null,null,null,null,"Lithuania","Lithuania"]
["Bahrain","Bahrain",null,null,null,null,"Luxembourg","Luxembourg"]
["Bangladesh","Bangladesh",null,null,null,null,"Malta","Malta"]
["Bank for International Settlements (BIS)","Bank for International Settlements (BIS)",null,null,null,null,"Martinique","Martinique"]
["Barbados","Barbados",null,null,null,null,"Mayotte Includes Grande-terre and Pamandzi.","Mayotte Includes Grande-terre and Pamandzi."]
["Belarus","Belarus",null,null,null,null,"Monaco","Monaco"]
["Belgium","Belgium",null,null,null,null,"Netherlands","Netherlands"]
["Belize","Belize",null,null,null,null,"Portugal","Portugal"]
["Benin","Benin",null,null,null,null,"Rest of the world (Outside EMU area)","Rest of the world (Outside EMU area)"]
["Bermuda","Bermuda",null,null,null,null,"Reunion","Reunion"]
["BES-islands","BES-islands",null,null,null,null,"Saint Barthélemy","Saint Barthélemy"]
["Bhutan","Bhutan",null,null,null,null,"Saint Martin (French part)","Saint Martin (French part)"]
["Bolivia","Bolivia",null,null,null,null,"Saint Pierre and Miquelon","Saint Pierre and Miquelon"]
["Bosnia Herzegovina","Bosnia Herzegovina",null,null,null,null,"Slovakia","Slovakia"]
["Botswana","Botswana",null,null,null,null,"Slovenia","Slovenia"]
["Bouvet Island (Bouvetoya)","Bouvet Island (Bouvetoya)",null,null,null,null,"Spain","Spain"]
["Brazil","Brazil"]
["British Indian Ocean territory","British Indian Ocean territory"]
["Brunei","Brunei"]
["Bulgaria","Bulgaria"]
["Burkina Faso (formerly Upper Volta)","Burkina Faso (formerly Upper Volta)"]
["Burundi","Burundi"]
["Cambodia","Cambodia"]
["Cameroon","Cameroon"]
["Canada","Canada"]
["Cape Verde","Cape Verde"]
["Cayman Islands","Cayman Islands"]
["Central African Republic","Central African Republic"]
["Chad","Chad"]
["Chile","Chile"]
["China","China"]
["Christmas Island (Australian)","Christmas Island (Australian)"]
["Cocos (Keeling) Islands","Cocos (Keeling) Islands"]
["Colombia","Colombia"]
["Comoros","Comoros"]
["Congo, The Democratic Republic of","Congo, The Democratic Republic of"]
["Congo-Brazzaville","Congo-Brazzaville"]
["Cook Islands","Cook Islands"]
["Costa Rica","Costa Rica"]
["Cote d'Ivoire","Cote d'Ivoire"]
["Croatia","Croatia"]
["Cuba","Cuba"]
["Curaçao","Curaçao"]
["Cyprus","Cyprus"]
["Czech Republic","Czech Republic"]
["Denmark","Denmark"]
["Djibouti","Djibouti"]
["Dominica","Dominica"]
["Dominican Republic","Dominican Republic"]
["East Timor","East Timor"]
["Ecuador","Ecuador"]
["Egypt","Egypt"]
["El Salvador","El Salvador"]
["Equatorial Guinea","Equatorial Guinea"]
["Eritrea","Eritrea"]
["Estonia","Estonia"]
["Ethiopia","Ethiopia"]
["European Bank for Reconstruction and Development (EBRD)","European Bank for Reconstruction and Development (EBRD)"]
["European Central Bank","European Central Bank"]
["European Financial Stabilisation Facility (EFSF)","European Financial Stabilisation Facility (EFSF)"]
["European Investment Bank","European Investment Bank"]
["European Stability Mechanism (ESM)","European Stability Mechanism (ESM)"]
["Falkland Islands (Malvinas)","Falkland Islands (Malvinas)"]
["Faroe Islands","Faroe Islands"]
["Fiji","Fiji"]
["Finland","Finland"]
["France","France"]
["French Guiana","French Guiana"]
["French Polynesia","French Polynesia"]
["French Southern Territories","French Southern Territories"]
["Gabon","Gabon"]
["Gambia","Gambia"]
["Georgia","Georgia"]
["Germany","Germany"]
["Ghana","Ghana"]
["Gibraltar","Gibraltar"]
["Greece","Greece"]
["Greenland","Greenland"]
["Grenada","Grenada"]
["Guadeloupe","Guadeloupe"]
["Guam","Guam"]
["Guatemala","Guatemala"]
["Guernsey, CI","Guernsey, CI"]
["Guinea","Guinea"]
["Guinea-Bissau","Guinea-Bissau"]
["Guyana","Guyana"]
["Haiti","Haiti"]
["Heard Island and McDonald Islands","Heard Island and McDonald Islands"]
["Holy See (Vatican City State)","Holy See (Vatican City State)"]
["Honduras","Honduras"]
["Hong Kong","Hong Kong"]
["Hungary","Hungary"]
["Iceland","Iceland"]
["India","India"]
["Indonesia","Indonesia"]
["International Monetary Fund (IMF)","International Monetary Fund (IMF)"]
["Iran","Iran"]
["Iraq","Iraq"]
["Ireland","Ireland"]
["Israel","Israel"]
["Italy","Italy"]
["Jamaica","Jamaica"]
["Japan","Japan"]
["Jersey, CI","Jersey, CI"]
["Jordan","Jordan"]
["Kazakhstan","Kazakhstan"]
["Kenya","Kenya"]
["Kiribati","Kiribati"]
["Korea North","Korea North"]
["Korea South","Korea South"]
["Kosovo","Kosovo"]
["Kuwait","Kuwait"]
["Kyrgyzstan","Kyrgyzstan"]
["Laos","Laos"]
["Latvia","Latvia"]
["Lebanon","Lebanon"]
["Lesotho","Lesotho"]
["Liberia","Liberia"]
["Libya","Libya"]
["Liechtenstein","Liechtenstein"]
["Lithuania","Lithuania"]
["Luxembourg","Luxembourg"]
["Macau","Macau"]
["Macedonia","Macedonia"]
["Madagascar","Madagascar"]
["Malawi","Malawi"]
["Malaysia","Malaysia"]
["Maldives","Maldives"]
["Mali","Mali"]
["Malta","Malta"]
["Man, Isle of","Man, Isle of"]
["Marshall Islands","Marshall Islands"]
["Martinique","Martinique"]
["Mauritania","Mauritania"]
["Mauritius","Mauritius"]
["Mayotte Includes Grande-terre and Pamandzi.","Mayotte Includes Grande-terre and Pamandzi."]
["Mexico","Mexico"]
["Micronesia (Federated States of)","Micronesia (Federated States of)"]
["Moldova","Moldova"]
["Monaco","Monaco"]
["Mongolia","Mongolia"]
["Montenegro","Montenegro"]
["Montserrat","Montserrat"]
["Morocco","Morocco"]
["Mozambique","Mozambique"]
["Myanmar (formerly Burma)","Myanmar (formerly Burma)"]
["Namibia","Namibia"]
["Nauru","Nauru"]
["Nepal","Nepal"]
["Netherlands","Netherlands"]
["New Caledonia","New Caledonia"]
["New Zealand","New Zealand"]
["Nicaragua","Nicaragua"]
["Niger","Niger"]
["Nigeria","Nigeria"]
["Niue","Niue"]
["Norfolk Island","Norfolk Island"]
["Northern Mariana Islands","Northern Mariana Islands"]
["Norway","Norway"]
["OECD organisations","OECD organisations"]
["EU institutions and other organisations","EU institutions and other organisations"]
["Other regional and international organisatons","Other regional and international organisatons"]
["Oman","Oman"]
["Pakistan","Pakistan"]
["Palau","Palau"]
["Palestinian Territory (Gaza and Jericho)","Palestinian Territory (Gaza and Jericho)"]
["Panama","Panama"]
["Papua New Guinea","Papua New Guinea"]
["Paraguay","Paraguay"]
["Peru","Peru"]
["Philippines","Philippines"]
["Pitcairn","Pitcairn"]
["Poland","Poland"]
["Portugal","Portugal"]
["Puerto Rico","Puerto Rico"]
["Qatar","Qatar"]
["Reunion","Reunion"]
["Romania","Romania"]
["Russia","Russia"]
["Rwanda","Rwanda"]
["Saint Barthélemy","Saint Barthélemy"]
["Saint Helena","Saint Helena"]
["Saint Kitts and Nevis","Saint Kitts and Nevis"]
["Saint Lucia","Saint Lucia"]
["Saint Maarten (Dutch part)","Saint Maarten (Dutch part)"]
["Saint Martin (French part)","Saint Martin (French part)"]
["Saint Pierre and Miquelon","Saint Pierre and Miquelon"]
["Saint Vincent and the Grenadines","Saint Vincent and the Grenadines"]
["Samoa","Samoa"]
["San Marino","San Marino"]
["Sao Tome and Principe","Sao Tome and Principe"]
["Saudi Arabia","Saudi Arabia"]
["Senegal","Senegal"]
["Serbia","Serbia"]
["Seychelles","Seychelles"]
["Sierra Leone","Sierra Leone"]
["Singapore","Singapore"]
["Single resolution board","Single resolution board"]
["Slovakia","Slovakia"]
["Slovenia","Slovenia"]
["Solomon Islands","Solomon Islands"]
["Somalia","Somalia"]
["South Africa","South Africa"]
["South Georgia and South Sandwich Islands","South Georgia and South Sandwich Islands"]
["South Sudan","South Sudan"]
["Spain","Spain"]
["Sri Lanka","Sri Lanka"]
["Sudan","Sudan"]
["Suriname","Suriname"]
["Svalbard and Jan Mayen Islands","Svalbard and Jan Mayen Islands"]
["Swaziland","Swaziland"]
["Sweden","Sweden"]
["Switzerland","Switzerland"]
["Syria","Syria"]
["Taiwan","Taiwan"]
["Tajikistan","Tajikistan"]
["Tanzania","Tanzania"]
["Thailand","Thailand"]
["Togo","Togo"]
["Tokelau","Tokelau"]
["Tonga","Tonga"]
["Trinidad and Tobago","Trinidad and Tobago"]
["Tunisia","Tunisia"]
["Turkey","Turkey"]
["Turkmenistan","Turkmenistan"]
["Turks and Caicos Islands","Turks and Caicos Islands"]
["Tuvalu (formerly Ellice Islands)","Tuvalu (formerly Ellice Islands)"]
["Uganda","Uganda"]
["Ukraine","Ukraine"]
["United Arab Emirates","United Arab Emirates"]
["United Kingdom","United Kingdom"]
["United Nations organisations","United Nations organisations"]
["United States Minor Outlying Islands","United States Minor Outlying Islands"]
["United States of America","United States of America"]
["Uruguay","Uruguay"]
["Uzbekistan","Uzbekistan"]
["Vanuatu","Vanuatu"]
["Venezuela","Venezuela"]
["Vietnam","Vietnam"]
["Virgin Islands (British)","Virgin Islands (British)"]
["Virgin Islands of the US","Virgin Islands of the US"]
["Wallis and Futuna Islands","Wallis and Futuna Islands"]
["Western Sahara","Western Sahara"]
["Worldbank (IBRD)","Worldbank (IBRD)"]
["Yemen (North)","Yemen (North)"]
["Zambia","Zambia"]
["Zimbabwe","Zimbabwe"]

{"sheet":"T8076","index":5,"n_rows":18,"n_cols":13,"rows_kept":18,"cut":false,"hidden":true,"merged":[[1,1,1,14],[4,1,4,11],[8,3,9,7],[10,3,11,3],[10,4,11,4],[10,5,11,5],[10,6,11,6],[10,7,11,7]]}
["Back to Index"]
[null,"Table group 1: Savings households"]
[]
[]
[null,"T8076 - Deposits with savings character for households in the Netherlands"]
[]
[]
[]
[null,null,null,"x-axis"]
[]
[null,null,null,"Outstanding amount at the start of the period","Deposits","Withdrawals","Interest credited","Cash paid interest or overdraft rate on another non-savings account"]
[]
[null,null,null,"010","020","030","040","050",null,null,null,{"$f":"Show!$B$2&\"T8076 Rows {\"&COLUMN($C$1)&\"}\"&Index!$E$6","v":"!T8076 Rows {3}"},{"$f":"Show!$B$2&\"T8076 Columns {\"&COLUMN($D$1)&\"}\"","v":"!T8076 Columns {4}"}]
[null,"y-axis",""]
[null,"Liabilities",""]
[null,"Deposits with agreed maturity","010"]
[null,"Deposits redeemable at notice","020"]
[null,null,null,null,null,null,null,null,null,null,null,{"$f":"Show!$B$2&Show!$B$2&\"T8076 Rows {\"&COLUMN($C$1)&\"}\"","v":"!!T8076 Rows {3}"},{"$f":"Show!$B$2&Show!$B$2&\"T8076 Columns {\"&COLUMN($H$1)&\"}\"","v":"!!T8076 Columns {8}"}]

{"sheet":"T8097a","index":6,"n_rows":24,"n_cols":16,"rows_kept":24,"cut":false,"hidden":true,"merged":[[1,1,1,14],[4,1,4,11],[8,3,9,10],[10,3,10,6],[10,9,10,10],[11,3,11,4],[11,5,11,6],[11,7,12,7],[11,8,12,8],[11,9,11,10]]}
["Back to Index"]
[null,"Table group 2: Minimumreserve group a"]
[]
[]
[null,"T8097a - Reporting of statistical positions for calculating minimum reserves"]
[]
[]
[]
[null,null,null,"x-axis"]
[]
[null,null,null,"Within EMU",null,null,null,"Rest of the world outside EMU","All countries","Within EMU"]
[null,null,null,"MFI",null,"Government and private sector",null,"Total sectors","Not allocated","Credit institutions"]
[null,null,null,"Other institutions","Money market funds","Government and private sector","Of which: Systemic investment firms (SIF)",null,null,"Of which: held by credit institutions within EMU (1)","Of which: provided by credit institutions within EMU without reserve obligation (2)"]
[null,null,null,"010","020","030","031","040","050","060","070",null,null,null,{"$f":"Show!$B$3&\"T8097a Rows {\"&COLUMN($C$1)&\"}\"&Index!$E$7","v":"!T8097a Rows {3}"},{"$f":"Show!$B$3&\"T8097a Columns {\"&COLUMN($D$1)&\"}\"","v":"!T8097a Columns {4}"}]
[null,"y-axis",""]
[null,"Liabilities",""]
[null,"Debt securities issued","010"]
[null,"- of which: maturity > 2 years","020"]
[null,"Loans and deposits received","030"]
[null,"- of which: agreed maturity > 2 years","040"]
[null,"- of which: redeemable at notice > 2 years","050"]
[null,"- of which: repos","060"]
[null,"- of which: long-term loans (> 2 years)","070"]
[null,null,null,null,null,null,null,null,null,null,null,null,null,null,{"$f":"Show!$B$3&Show!$B$3&\"T8097a Rows {\"&COLUMN($C$1)&\"}\"","v":"!!T8097a Rows {3}"},{"$f":"Show!$B$3&Show!$B$3&\"T8097a Columns {\"&COLUMN($K$1)&\"}\"","v":"!!T8097a Columns {11}"}]

{"sheet":"T8097b","index":7,"n_rows":24,"n_cols":10,"rows_kept":24,"cut":false,"hidden":true,"merged":[[1,1,1,14],[4,1,4,11],[8,3,9,4],[10,3,10,4],[11,3,11,4]]}
["Back to Index"]
[null,"Table group 2: Minimumreserve group b"]
[]
[]
[null,"T8097b - Reporting of statistical positions for calculating minimum reserves"]
[]
[]
[]
[null,null,null,"x-axis"]
[]
[null,null,null,"Within EMU"]
[null,null,null,"Credit institutions"]
[null,null,null,"Of which: held by credit institutions within EMU (1)","Of which: provided by credit institutions within EMU without reserve obligation (2)"]
[null,null,null,"050","060",null,null,null,{"$f":"Show!$B$4&\"T8097b Rows {\"&COLUMN($C$1)&\"}\"&Index!$E$8","v":"!T8097b Rows {3}"},{"$f":"Show!$B$4&\"T8097b Columns {\"&COLUMN($D$1)&\"}\"","v":"!T8097b Columns {4}"}]
[null,"y-axis",""]
[null,"Liabilities",""]
[null,"Debt securities issued","010"]
[null,"- of which: maturity > 2 years","020"]
[null,"Loans and deposits received","030"]
[null,"- of which: agreed maturity > 2 years","040"]
[null,"- of which: redeemable at notice > 2 years","050"]
[null,"- of which: repos","060"]
[null,"- of which: long-term loans (> 2 years)","070"]
[null,null,null,null,null,null,null,null,{"$f":"Show!$B$4&Show!$B$4&\"T8097b Rows {\"&COLUMN($C$1)&\"}\"","v":"!!T8097b Rows {3}"},{"$f":"Show!$B$4&Show!$B$4&\"T8097b Columns {\"&COLUMN($E$1)&\"}\"","v":"!!T8097b Columns {5}"}]

{"sheet":"T9001HK1","index":8,"n_rows":216,"n_cols":32,"rows_kept":216,"cut":false,"hidden":true,"merged":[[14,23,15,23],[14,24,15,24],[14,25,15,25],[13,22,13,23],[13,24,13,25],[13,20,15,20],[13,21,15,21],[14,9,15,9],[14,10,15,10],[14,11,15,11],[14,13,15,13],[14,14,14,17],[13,6,15,6],[13,8,15,8],[13,9,13,11],[13,12,15,12],[13,13,13,19],[1,1,1,14],[4,1,4,11],[9,3,10,26],[11,3,11,7],[11,8,11,25],[11,26,15,26],[12,3,15,3],[12,4,12,6],[12,7,15,7],[12,8,12,11],[14,18,15,18],[14,19,15,19],[14,22,15,22],[12,12,12,25],[13,4,15,4],[13,5,15,5]]}
["Back to Index"]
[null,"Table group 3a: BSI positions"]
[]
[]
[null,"T9001HK1 - Debt positions owed by Dutch MFIs to counterparties in MFIs, government and private sector"]
[]
[null,"Counterparty country/group","Z001",null,null,null,{"$f":"Show!$B$5&\"T9001HK1 Table label {\"&COLUMN($C$1)&\"}\"","v":"!T9001HK1 Table label {3}"},{"$f":"Show!$B$5&\"T9001HK1 Table value {\"&COLUMN($D$1)&\"}\"","v":"!T9001HK1 Table value {4}"}]
[null,null,null,null,null,null,{"$f":"Show!$B$5&Show!$B$5&\"T9001HK1 Table label {\"&COLUMN($C$1)&\"}\"","v":"!!T9001HK1 Table label {3}"},{"$f":"Show!$B$5&Show!$B$5&\"T9001HK1 Table value {\"&COLUMN($D$1)&\"}\"","v":"!!T9001HK1 Table value {4}"}]
[]
[null,null,null,"x-axis"]
[]
[null,null,null,"MFIs",null,null,null,null,"Government and private sector",null,null,null,null,null,null,null,null,null,null,null,null,null,null,null,null,null,"Total all sectors"]
[null,null,null,"Central bank (S.121)","Deposit-taking corporations (S.122)",null,null,"Money market funds (S.123)","Government (S.13)",null,null,null,"Private sector"]
[null,null,null,null,"Credit institutions within own group","Credit institutions outside own group","Deposit-taking corporations other than credit institutions",null,"Central government (S.1311)","Other government",null,null,"Of which: non-bank within own group","Other financial institutions (OFIs)",null,null,null,null,null,null,"Insurance corporations (S.128)","Pension funds (S.129)","Non-financial corporations (S.11)",null,"Households"]
[null,null,null,null,null,null,null,null,null,"State government (S.1312)","Local government (S.1313)","Social security funds (S.1314)",null,"Investment funds (S.124)","Other financial intermediaries (S.125)",null,null,null,"Financial auxiliaries (S.126)","Captive financial institutions \nand money lenders (S.127)",null,null,"Non-financial private corporations","Non-financial public corporations","Private households (S.14)","Non-profit institutions serving households (S.15)"]
[null,null,null,null,null,null,null,null,null,null,null,null,null,null,"Financial vehicle corporations","Central counterparties (CCP)","Systemic investment firms (SIF)","Remaining other financial intermediaries"]
[null,null,null,"010","020","030","040","050","060","070","080","090","100","110","120","130","131","141","142","143","150","160","170","180","190","200","210",null,null,null,{"$f":"Show!$B$5&\"T9001HK1 Rows {\"&COLUMN($C$1)&\"}\"&Index!$E$9","v":"!T9001HK1 Rows {3}"},{"$f":"Show!$B$5&\"T9001HK1 Columns {\"&COLUMN($D$1)&\"}\"","v":"!T9001HK1 Columns {4}"}]
[null,"y-axis",""]
[null,"Assets",""]
[null,"Participations","010"]
[null,"- Of which: in euros","020"]
[null,"- Of which: in pounds Sterling","030"]
[null,"- Of which: in other EU currencies","040"]
[null,"- Of which: in US dollars","050"]
[null,"- Of which: in Japanese yen","060"]
[null,"- Of which: in Swiss francs","070"]
[null,"- Of which: in total other currencies","080"]
[null,"Participations",""]
[null,"- Of which: working capital for foreign branches","090"]
[null,"Loans granted and deposits placed (maturity and currency)","100"]
[null,"- Maturity <= 1 year","110"]
[null,"- Of which: in euros","120"]
[null,"- Of which: in pounds Sterling","130"]
[null,"- Of which: in other EU currencies","140"]
[null,"- Of which: in US dollars","150"]
[null,"- Of which: in Japanese yen","160"]
[null,"- Of which: in Swiss francs","170"]
[null,"- Of which: in total other currencies","180"]
[null,"- > 1 year maturity <= 2 yearss","191"]
[null,"- Of which: in euros","192"]
[null,"- Of which: in pounds Sterling","193"]
[null,"- Of which: in other EU currencies","194"]
[null,"- Of which: in US dollars","195"]
[null,"- Of which: in Japanese yen","196"]
[null,"- Of which: in Swiss francs","197"]
[null,"- Of which: in total other currencies","198"]
[null,"- > 2 years maturity <= 5 years","201"]
[null,"- Of which: in euros","202"]
[null,"- Of which: in pounds Sterling","203"]
[null,"- Of which: in other EU currencies","204"]
[null,"- Of which: in US dollars","205"]
[null,"- Of which: in Japanese yen","206"]
[null,"- Of which: in Swiss francs","207"]
[null,"- Of which: in total other currencies","208"]
[null,"- Maturity > 5 years","270"]
[null,"- Of which: in euros","280"]
[null,"- Of which: in pounds Sterling","290"]
[null,"- Of which: in other EU currencies","300"]
[null,"- Of which: in US dollars","310"]
[null,"- Of which: in Japanese yen","320"]
[null,"- Of which: in Swiss francs","330"]
[null,"- Of which: in total other currencies","340"]
[null,"Loans granted and deposits placed (per type of loan)",""]
[null,"Overnight deposits","350"]
[null,"- Of which: in euros","360"]
[null,"Other deposits","370"]
[null,"- Of which: in euros","380"]
[null,"Loans",""]
[null,"- Maturity <= 1 year","390"]
[null,"- > 1 year maturity <= 2 yearss","401"]
[null,"- > 2 years maturity <= 5 years","402"]
[null,"- Maturity > 5 year","410"]
[null,"- Of which: in euros",""]
[null,"- Maturity <= 1 year","420"]
[null,"- > 1 year maturity <= 2 yearss","431"]
[null,"- > 2 years maturity <= 5 years","432"]
[null,"- Maturity > 5 year","440"]
[null,"Loans for house purchases",""]
[null,"- Maturity <= 1 year","450"]
[null,"- > 1 year maturity <= 2 years","461"]
[null,"- > 2 years maturity <= 5 years","462"]
[null,"- Maturity > 5 year","470"]
[null,"- Of which: in euros",""]
[null,"- Maturity <= 1 year","480"]
[null,"- > 1 year maturity <= 2 years","491"]
[null,"- > 2 years maturity <= 5 years","492"]
[null,"- Maturity > 5 year","500"]
[null,"Loans for consumption (personal)",""]
[null,"- Maturity <= 1 year","510"]
[null,"- > 1 year maturity <= 2 years","521"]
[null,"- > 2 years maturity <= 5 years","522"]
[null,"- Maturity > 5 year","530"]
[null,"- Of which: in euros",""]
[null,"- Maturity <= 1 year","540"]
[null,"- > 1 year maturity <= 2 years","551"]
[null,"- > 2 years maturity <= 5 years","552"]
[null,"- Maturity > 5 year","560"]
[null,"Revolving loans","570"]
[null,"- Of which: in euros","580"]
[null,"Overdrafts (current account)","590"]
[null,"- Of which: in euros","600"]
[null,"Credit card",""]
[null,"Convenience credit card","610"]
[null,"- Of which: in euros","620"]
[null,"Extended credit","630"]
[null,"- Of which: in euros","640"]
[null,"Other loans",""]
[null,"- Maturity <= 1 year","650"]
[null,"- > 1 year maturity <= 2 years","661"]
[null,"- > 2 years maturity <= 5 years","662"]
[null,"- Maturity > 5 year","670"]
[null,"- Of which: in euros",""]
[null,"- Maturity <= 1 year","680"]
[null,"- > 1 year maturity <= 2 years","691"]
[null,"- > 2 years maturity <= 5 years","692"]
[null,"- Maturity > 5 year","700"]
[null,"Loans granted and deposits placed (some ‘of which’ positions)",""]
[null,"- Notional cash pooling","710"]
[null,"- Of which: in euros","720"]
[null,"- Of which: in US dollars","730"]
[null,"- Repos","740"]
[null,"- Syndicated loans","750"]
[null,"- Other loans granted and deposits placed","760"]
[null,"Financial derivatives","770"]
[null,"- Of which: in euros","780"]
[null,"- Of which: in pounds Sterling","790"]
[null,"- Of which: in other EU currencies","800"]
[null,"- Of which: in US dollars","810"]
[null,"- Of which: in Japanese yen","820"]
[null,"- Of which: in Swiss francs","830"]
[null,"- Of which: in total other currencies","840"]
[null,"Off-balance sheet items",""]
[null,"Credit lines","850"]
[null,"Other assets","860"]
[null,"- Of which: in euros","870"]
[null,"Other assets (some ‘of which’ positions, broken down into asset type)",""]
[null,"- Of which: goodwill","880"]
[null,"- Of which transit items","890"]
[null,"- Of which: accrued interest receivable on securities","900"]
[null,"- Of which: accrued interest receivable on loans","910"]
[null,"- Of which: other","920"]
[null,"Liabilities",""]
[null,"Equity capital of associates","930"]
[null,"- Of which: in euros","940"]
[null,"- Of which: in pounds Sterling","950"]
[null,"- Of which: in other EU currencies","960"]
[null,"- Of which: in US dollars","970"]
[null,"- Of which: in Japanese yen","980"]
[null,"- Of which: in Swiss francs","990"]
[null,"- Of which: in total other currencies","1000"]
[null,"Equity capital of associates",""]
[null,"- Of which: working capital of foreign parent","1010"]
[null,"Loans and deposits received (per maturity/currency)","1020"]
[null,"- Maturity <= 1 year","1030"]
[null,"- Of which: in euros","1040"]
[null,"- Of which: in pounds Sterling","1050"]
[null,"- Of which: in other EU currencies","1060"]
[null,"- Of which: in US dollars","1070"]
[null,"- Of which: in Japanese yen","1080"]
[null,"- Of which: in Swiss francs","1090"]
[null,"- Of which: in total other currencies","1100"]
[null,"- Maturity > 1 year","1110"]
[null,"- Of which: in euros","1120"]
[null,"- Of which: in pounds Sterling","1130"]
[null,"- Of which: in other EU currencies","1140"]
[null,"- Of which: in US dollars","1150"]
[null,"- Of which: in Japanese yen","1160"]
[null,"- Of which: in Swiss francs","1170"]
[null,"- Of which: in total other currencies","1180"]
[null,"Loans and deposits received (per type of deposit)",""]
[null,"- Notional cash pooling","1190"]
[null,"- Of which: in euros","1200"]
[null,"- Of which: in US dollars","1210"]
[null,"- Other loans and deposits received","1220"]
[null,"Overnight deposits","1230"]
[null,"- Of which: in euros","1240"]
[null,"- Of which: balances on prepaid cards","1250"]
[null,"- Of which: transferable","1260"]
[null,"- Of which: in euros","1270"]
[null,"Deposits with agreed maturity",""]
[null,"- Maturity <= 1 year","1280"]
[null,"- 1 year < maturity <= 2 years","1290"]
[null,"- Maturity > 2 years","1300"]
[null,"- Of which: in euros",""]
[null,"- Maturity <= 1 year","1310"]
[null,"- 1 year < maturity <= 2 years","1320"]
[null,"- Maturity > 2 years","1330"]
[null,"Deposits redeemable at notice",""]
[null,"- notice <= 3 months","1340"]
[null,"- notice > 3 months",""]
[null,"- 3 months < notice <= 2 years","1350"]
[null,"- notice > 2 years","1360"]
[null,"- Of which: in euros",""]
[null,"- notice <= 3 months","1370"]
[null,"- notice > 3 months",""]
[null,"- 3 months < notice <= 2 years","1380"]
[null,"- notice > 2 years","1390"]
[null,"Repos","1400"]
[null,"- Of which: in euros","1410"]
[null,"Long term loans (> 2 years)","1420"]
[null,"- Of which: in euros","1430"]
[null,"Financial derivatives","1440"]
[null,"- Of which: in euros","1450"]
[null,"- Of which: in pounds Sterling","1460"]
[null,"- Of which: in other EU currencies","1470"]
[null,"- Of which: in US dollars","1480"]
[null,"- Of which: in Japanese yen","1490"]
[null,"- Of which: in Swiss francs","1500"]
[null,"- Of which: in total other currencies","1510"]
[null,"Other liabilities","1520"]
[null,"- Of which: in euros","1530"]
[null,"Other liabilities (some ‘of which’ positions, broken down into liability type)",""]
[null,"- Transit items","1540"]
[null,"- Accrued interest payable on deposits","1550"]
[null,"- Other","1560"]
[null,null,null,null,null,null,null,null,null,null,null,null,null,null,null,null,null,null,null,null,null,null,null,null,null,null,null,null,null,null,{"$f":"Show!$B$5&Show!$B$5&\"T9001HK1 Rows {\"&COLUMN($C$1)&\"}\"","v":"!!T9001HK1 Rows {3}"},{"$f":"Show!$B$5&Show!$B$5&\"T9001HK1 Columns {\"&COLUMN($AA$1)&\"}\"","v":"!!T9001HK1 Columns {27}"}]

{"sheet":"T9001HK2","index":9,"n_rows":59,"n_cols":32,"rows_kept":59,"cut":false,"hidden":true,"merged":[[14,23,15,23],[14,24,15,24],[14,25,15,25],[13,22,13,23],[13,24,13,25],[13,20,15,20],[13,21,15,21],[14,9,15,9],[14,10,15,10],[14,11,15,11],[14,13,15,13],[14,14,14,17],[13,6,15,6],[13,8,15,8],[13,9,13,11],[13,12,15,12],[13,13,13,19],[1,1,1,14],[4,1,4,11],[9,3,10,26],[11,3,11,7],[11,8,11,25],[11,26,15,26],[12,3,15,3],[12,4,12,6],[12,7,15,7],[12,8,12,11],[14,18,15,18],[14,19,15,19],[14,22,15,22],[12,12,12,25],[13,4,15,4],[13,5,15,5]]}
["Back to Index"]
[null,"Table group 3a: BSI positions"]
[]
[]
[null,"T9001HK2 - Securities held by Dutch MFIs"]
[]
[null,"Counterparty country/group","Z001",null,null,null,{"$f":"Show!$B$6&\"T9001HK2 Table label {\"&COLUMN($C$1)&\"}\"","v":"!T9001HK2 Table label {3}"},{"$f":"Show!$B$6&\"T9001HK2 Table value {\"&COLUMN($D$1)&\"}\"","v":"!T9001HK2 Table value {4}"}]
[null,null,null,null,null,null,{"$f":"Show!$B$6&Show!$B$6&\"T9001HK2 Table label {\"&COLUMN($C$1)&\"}\"","v":"!!T9001HK2 Table label {3}"},{"$f":"Show!$B$6&Show!$B$6&\"T9001HK2 Table value {\"&COLUMN($D$1)&\"}\"","v":"!!T9001HK2 Table value {4}"}]
[]
[null,null,null,"x-axis"]
[]
[null,null,null,"MFIs",null,null,null,null,"Government and private sector",null,null,null,null,null,null,null,null,null,null,null,null,null,null,null,null,null,"Total all sectors"]
[null,null,null,"Central bank (S.121)","Deposit-taking corporations (S.122)",null,null,"Money market funds (S.123)","Government (S.13)",null,null,null,"Private sector"]
[null,null,null,null,"Credit institutions within own group","Credit institutions outside own group","Deposit-taking corporations other than credit institutions",null,"Central government (S.1311)","Other government",null,null,"Of which: non-bank within own group","Other financial institutions (OFIs)",null,null,null,null,null,null,"Insurance corporations (S.128)","Pension funds (S.129)","Non-financial corporations (S.11)",null,"Households"]
[null,null,null,null,null,null,null,null,null,"State government (S.1312)","Local government (S.1313)","Social security funds (S.1314)",null,"Investment funds (S.124)","Other financial intermediaries (S.125)",null,null,null,"Financial auxiliaries (S.126)","Captive financial institutions \nand money lenders (S.127)",null,null,"Non-financial private corporations","Non-financial public corporations","Private households (S.14)","Non-profit institutions serving households (S.15)"]
[null,null,null,null,null,null,null,null,null,null,null,null,null,null,"Financial vehicle corporations","Central counterparties (CCP)","Systemic investment firms (SIF)","Remaining other financial intermediaries"]
[null,null,null,"010","020","030","040","050","060","070","080","090","100","110","120","130","131","141","142","143","150","160","170","180","190","200","210",null,null,null,{"$f":"Show!$B$6&\"T9001HK2 Rows {\"&COLUMN($C$1)&\"}\"&Index!$E$10","v":"!T9001HK2 Rows {3}"},{"$f":"Show!$B$6&\"T9001HK2 Columns {\"&COLUMN($D$1)&\"}\"","v":"!T9001HK2 Columns {4}"}]
[null,"y-axis",""]
[null,"Assets",""]
[null,"Shares / units","010"]
[null,"- Of which: in euros","020"]
[null,"- Of which: in pounds Sterling","030"]
[null,"- Of which: in other EU currencies","040"]
[null,"- Of which: in US dollars","050"]
[null,"- Of which: in Japanese yen","060"]
[null,"- Of which: in Swiss francs","070"]
[null,"- Of which: in total other currencies","080"]
[null,"Shares / units",""]
[null,"- Of which: short positions","100"]
[null,"Shares held",""]
[null,"- Listed shares","110"]
[null,"- Unlisted shares","120"]
[null,"Shares held","130"]
[null,"- Of which: in euros","140"]
[null,"- Of which: in pounds Sterling","150"]
[null,"- Of which: in other EU currencies","160"]
[null,"- Of which: in US dollars","170"]
[null,"- Of which: in Japanese yen","180"]
[null,"- Of which: in Swiss francs","190"]
[null,"- Of which: in total other currencies","200"]
[null,"Shares held",""]
[null,"- Of which: short positions","210"]
[null,"Debt securities held","220"]
[null,"- Maturity <= 1 year","230"]
[null,"- 1 year < maturity <= 2 years","240"]
[null,"- Maturity > 2 years","250"]
[null,"- Of which: in euros",""]
[null,"- Maturity <= 1 year","260"]
[null,"- 1 year < maturity <= 2 years","270"]
[null,"- Maturity > 2 years","280"]
[null,"- Of which: in pounds Sterling","290"]
[null,"- Of which: in other EU currencies","300"]
[null,"- Of which: in US dollars","310"]
[null,"- Of which: in Japanese yen","320"]
[null,"- Of which: in Swiss francs","330"]
[null,"- Of which: in total other currencies","340"]
[null,"Debt securities held",""]
[null,"- Of which: short positions","350"]
[null,null,null,null,null,null,null,null,null,null,null,null,null,null,null,null,null,null,null,null,null,null,null,null,null,null,null,null,null,null,{"$f":"Show!$B$6&Show!$B$6&\"T9001HK2 Rows {\"&COLUMN($C$1)&\"}\"","v":"!!T9001HK2 Rows {3}"},{"$f":"Show!$B$6&Show!$B$6&\"T9001HK2 Columns {\"&COLUMN($AA$1)&\"}\"","v":"!!T9001HK2 Columns {27}"}]

{"sheet":"T9001HK3","index":10,"n_rows":55,"n_cols":11,"rows_kept":55,"cut":false,"hidden":true,"merged":[[1,1,1,14],[4,1,4,11],[9,3,10,5],[11,3,11,4],[11,5,14,5],[12,3,14,3],[12,4,14,4]]}
["Back to Index"]
[null,"Table group 3b: BSI positions - loans granted and deposits placed - details"]
[]
[]
[null,"T9001HK3 - Loans granted and deposits placed with over-coverage of real estate as collateral (LTV ratio <= 1)"]
[]
[null,"Counterparty country/group","Z001",null,null,null,{"$f":"Show!$B$7&\"T9001HK3 Table label {\"&COLUMN($C$1)&\"}\"","v":"!T9001HK3 Table label {3}"},{"$f":"Show!$B$7&\"T9001HK3 Table value {\"&COLUMN($D$1)&\"}\"","v":"!T9001HK3 Table value {4}"}]
[null,null,null,null,null,null,{"$f":"Show!$B$7&Show!$B$7&\"T9001HK3 Table label {\"&COLUMN($C$1)&\"}\"","v":"!!T9001HK3 Table label {3}"},{"$f":"Show!$B$7&Show!$B$7&\"T9001HK3 Table value {\"&COLUMN($D$1)&\"}\"","v":"!!T9001HK3 Table value {4}"}]
[]
[null,null,null,"x-axis"]
[]
[null,null,null,"Non-financial corporations (S.11)",null,"Households (S.14 + S.15)"]
[null,null,null,"Non-financial private corporations","Non-financial public corporations"]
[]
[]
[null,null,null,"010","020","030",null,null,null,{"$f":"Show!$B$7&\"T9001HK3 Rows {\"&COLUMN($C$1)&\"}\"&Index!$E$11","v":"!T9001HK3 Rows {3}"},{"$f":"Show!$B$7&\"T9001HK3 Columns {\"&COLUMN($D$1)&\"}\"","v":"!T9001HK3 Columns {4}"}]
[null,"y-axis",""]
[null,"Assets",""]
[null,"Loans for house purchases",""]
[null,"- Maturity <= 1 year","010"]
[null,"- > 1 year maturity <= 2 years","021"]
[null,"- > 2 years maturity <= 5 years","022"]
[null,"- Maturity > 5 years","030"]
[null,"- Of which: in euros",""]
[null,"- Maturity <= 1 year","040"]
[null,"- > 1 year maturity <= 2 years","051"]
[null,"- > 2 years maturity <= 5 years","052"]
[null,"- Maturity > 5 years","060"]
[null,"Loans for consumption (personal)",""]
[null,"- Maturity <= 1 year","070"]
[null,"- > 1 year maturity <= 2 years","081"]
[null,"- > 2 years maturity <= 5 years","082"]
[null,"- Maturity > 5 years","090"]
[null,"- Of which: in euros",""]
[null,"- Maturity <= 1 year","100"]
[null,"- > 1 year maturity <= 2 years","111"]
[null,"- > 2 years maturity <= 5 years","112"]
[null,"- Maturity > 5 years","120"]
[null,"Revolving loans","130"]
[null,"Of which: in euros","140"]
[null,"Overdrafts","150"]
[null,"Of which: in euros","160"]
[null,"Credit card","170"]
[null,"Of which: in euros","180"]
[null,"Other loans",""]
[null,"- Maturity <= 1 year","190"]
[null,"- > 1 year maturity <= 2 years","201"]
[null,"- > 2 years maturity <= 5 years","202"]
[null,"- Maturity > 5 years","210"]
[null,"- Of which: in euros",""]
[null,"- Maturity <= 1 year","220"]
[null,"- > 1 year maturity <= 2 years","231"]
[null,"- > 2 years maturity <= 5 years","232"]
[null,"- Maturity > 5 years","240"]
[null,null,null,null,null,null,null,null,null,{"$f":"Show!$B$7&Show!$B$7&\"T9001HK3 Rows {\"&COLUMN($C$1)&\"}\"","v":"!!T9001HK3 Rows {3}"},{"$f":"Show!$B$7&Show!$B$7&\"T9001HK3 Columns {\"&COLUMN($F$1)&\"}\"","v":"!!T9001HK3 Columns {6}"}]

{"sheet":"T9001HK4","index":11,"n_rows":29,"n_cols":11,"rows_kept":29,"cut":false,"hidden":true,"merged":[[1,1,1,14],[4,1,4,11],[9,3,10,5],[11,3,11,4],[11,5,14,5],[12,3,14,3],[12,4,14,4]]}
["Back to Index"]
[null,"Table group 3b: BSI positions - loans granted and deposits placed - details"]
[]
[]
[null,"T9001HK4 - Loans granted and deposits placed in euros by Dutch MFIs, broken down into original and remaining maturities"]
[]
[null,"Counterparty country/group","Z001",null,null,null,{"$f":"Show!$B$8&\"T9001HK4 Table label {\"&COLUMN($C$1)&\"}\"","v":"!T9001HK4 Table label {3}"},{"$f":"Show!$B$8&\"T9001HK4 Table value {\"&COLUMN($D$1)&\"}\"","v":"!T9001HK4 Table value {4}"}]
[null,null,null,null,null,null,{"$f":"Show!$B$8&Show!$B$8&\"T9001HK4 Table label {\"&COLUMN($C$1)&\"}\"","v":"!!T9001HK4 Table label {3}"},{"$f":"Show!$B$8&Show!$B$8&\"T9001HK4 Table value {\"&COLUMN($D$1)&\"}\"","v":"!!T9001HK4 Table value {4}"}]
[]
[null,null,null,"x-axis"]
[]
[null,null,null,"Non-financial corporations (S.11)",null,"Households (S.14 + S.15)"]
[null,null,null,"Non-financial private corporations","Non-financial public corporations"]
[]
[]
[null,null,null,"010","020","030",null,null,null,{"$f":"Show!$B$8&\"T9001HK4 Rows {\"&COLUMN($C$1)&\"}\"&Index!$E$12","v":"!T9001HK4 Rows {3}"},{"$f":"Show!$B$8&\"T9001HK4 Columns {\"&COLUMN($D$1)&\"}\"","v":"!T9001HK4 Columns {4}"}]
[null,"y-axis",""]
[null,"Assets",""]
[null,"Loans granted and deposits placed with original maturity > 1 year",""]
[null,"- Of which: remaining maturity <= 1 year","010"]
[null,"- Of which: remaining maturity > 1 year",""]
[null,"- with interest rate reset within 12 months","020"]
[null,"- without interest rate reset within 12 months","030"]
[null,"Loans granted and deposits placed with original maturity > 2 years",""]
[null,"- Of which: remaining maturity <= 2 years","040"]
[null,"- Of which: remaining maturity > 2 years",""]
[null,"- with interest rate reset within 24 months","050"]
[null,"- without interest rate reset within 24 months","060"]
[null,null,null,null,null,null,null,null,null,{"$f":"Show!$B$8&Show!$B$8&\"T9001HK4 Rows {\"&COLUMN($C$1)&\"}\"","v":"!!T9001HK4 Rows {3}"},{"$f":"Show!$B$8&Show!$B$8&\"T9001HK4 Columns {\"&COLUMN($F$1)&\"}\"","v":"!!T9001HK4 Columns {6}"}]

{"sheet":"T9001HK5","index":12,"n_rows":61,"n_cols":10,"rows_kept":61,"cut":false,"hidden":true,"merged":[[1,1,1,14],[4,1,4,11],[8,3,9,4],[10,3,10,4],[11,3,12,3],[11,4,12,4]]}
["Back to Index"]
[null,"Table group 3c: BSI positions - business breakdown"]
[]
[]
[null,"T9001HK5 - Business breakdown of the loans granted and deposits placed by non-financial corporations"]
[]
[]
[]
[null,null,null,"x-axis"]
[]
[null,null,null,"Loans granted and deposits placed"]
[null,null,null,"Netherlands","Rest of the euro area"]
[]
[null,null,null,"010","020",null,null,null,{"$f":"Show!$B$9&\"T9001HK5 Rows {\"&COLUMN($C$1)&\"}\"&Index!$E$13","v":"!T9001HK5 Rows {3}"},{"$f":"Show!$B$9&\"T9001HK5 Columns {\"&COLUMN($D$1)&\"}\"","v":"!T9001HK5 Columns {4}"}]
[null,"y-axis",""]
[null,"Total non-financial corporations","010"]
[null,"Total non-financial private corporations",""]
[null,"Agriculture, forestry and fishing","020"]
[null,"Mining and quarrying","030"]
[null,"Manufacturing","040"]
[null,"Electricity, gas, steam and air conditioning supply","050"]
[null,"Water supply, sewerage, waste management and remediation activities","060"]
[null,"Construction","070"]
[null,"Wholesale and retail trade; repair of motor vehicles and motorcycles","080"]
[null,"Transportation and storage","090"]
[null,"Accommodation and food service activities","100"]
[null,"Information and communication","110"]
[null,"Financial and insurance activities","120"]
[null,"Real estate activities","130"]
[null,"Professional, scientific and technical activities","140"]
[null,"Administrative and support service activities","150"]
[null,"Public administration and defence; compulsory social security","160"]
[null,"Education","170"]
[null,"Human health and social work activities","180"]
[null,"Arts, entertainment and recreation","190"]
[null,"Other service activities","200"]
[null,"Activities of households as employers; undifferentiated goods- and services producing activities of households for own use","210"]
[null,"Activities of extraterritorial organizations and bodies","220"]
[null,"Total non-financial public corporations",""]
[null,"Agriculture, forestry and fishing","230"]
[null,"Mining and quarrying","240"]
[null,"Manufacturing","250"]
[null,"Electricity, gas, steam and air conditioning supply","260"]
[null,"Water supply, sewerage, waste management and remediation activities","270"]
[null,"Construction","280"]
[null,"Wholesale and retail trade; repair of motor vehicles and motorcycles","290"]
[null,"Transportation and storage","300"]
[null,"Accommodation and food service activities","310"]
[null,"Information and communication","320"]
[null,"Financial and insurance activities","330"]
[null,"Real estate activities","340"]
[null,"Professional, scientific and technical activities","350"]
[null,"Administrative and support service activities","360"]
[null,"Public administration and defence; compulsory social security","370"]
[null,"Education","380"]
[null,"Human health and social work activities","390"]
[null,"Arts, entertainment and recreation","400"]
[null,"Other service activities","410"]
[null,"Activities of households as employers; undifferentiated goods- and services producing activities of households for own use","420"]
[null,"Activities of extraterritorial organizations and bodies","430"]
[null,null,null,null,null,null,null,null,{"$f":"Show!$B$9&Show!$B$9&\"T9001HK5 Rows {\"&COLUMN($C$1)&\"}\"","v":"!!T9001HK5 Rows {3}"},{"$f":"Show!$B$9&Show!$B$9&\"T9001HK5 Columns {\"&COLUMN($E$1)&\"}\"","v":"!!T9001HK5 Columns {5}"}]

{"sheet":"T9001HK6","index":13,"n_rows":72,"n_cols":11,"rows_kept":72,"cut":false,"hidden":true,"merged":[[1,1,1,14],[4,1,4,11],[8,3,9,5],[10,3,14,3],[10,4,14,4],[10,5,14,5]]}
["Back to Index"]
[null,"Table group 3d: BSI positions - total overview"]
[]
[]
[null,"T9001HK6 - Total overview of the balance sheet items of Dutch MFIs"]
[]
[]
[]
[null,null,null,"x-axis"]
[]
[null,null,null,"Total all sectors","Not allocated","Grand total"]
[]
[]
[]
[]
[null,null,null,"010","020","030",null,null,null,{"$f":"Show!$B$10&\"T9001HK6 Rows {\"&COLUMN($C$1)&\"}\"&Index!$E$14","v":"!T9001HK6 Rows {3}"},{"$f":"Show!$B$10&\"T9001HK6 Columns {\"&COLUMN($D$1)&\"}\"","v":"!T9001HK6 Columns {4}"}]
[null,"y-axis",""]
[null,"Assets",""]
[null,"Currency in circulation","010"]
[null,"- Of which: in euros","020"]
[null,"Shares / units","030"]
[null,"Shares and participations held","040"]
[null,"- Shares held","050"]
[null,"- Participations","060"]
[null,"Debt securities held","070"]
[null,"Loans granted and deposits placed","080"]
[null,"Non-financial assets (including fixed assets)","090"]
[null,"- of which: real estate holdings","091"]
[null,"Financial derivatives","100"]
[null,"Other assets","110"]
[null,"- Of which: in euros","120"]
[null,"Total assets","130"]
[null,"Liabilities",""]
[null,"Capital and reserves","140"]
[null,"- Of which: Shares / participations issued by money market funds","150"]
[null,"- Of which: Equity capital of associates","160"]
[null,"- Of which: Accrued equity capital of associates including agio","170"]
[null,"- Of which: Profit (or loss) as recorded in the profit and loss account","180"]
[null,"- Of which: Income and expenses processed directly in equity of associates","190"]
[null,"- Of which: Unpaid earnings or funds (including general and specific reserves)","200"]
[null,"- Of which: Provisions","210"]
[null,"Debt securities issued",""]
[null,"- maturity <= 1 year","220"]
[null,"- Of which: nominal capital guarantee < 100%","230"]
[null,"- 1 year < maturity <= 2 years","240"]
[null,"- Of which: nominal capital guarantee < 100%","250"]
[null,"- maturity > 2 years","260"]
[null,"- Of which: in euros",""]
[null,"- maturity <= 1 year","270"]
[null,"- Of which: nominal capital guarantee < 100%","280"]
[null,"- 1 year < maturity <= 2 years","290"]
[null,"- Of which: nominal capital guarantee < 100%","300"]
[null,"- maturity > 2 years","310"]
[null,"- Of which: in pounds Sterling","320"]
[null,"- Of which: in other EU currencies","330"]
[null,"- Of which: in US dollars","340"]
[null,"- Of which: in Japanese yen","350"]
[null,"- Of which: in Swiss francs","360"]
[null,"- Of which: in total other currencies","370"]
[null,"Loans and deposits received","390"]
[null,"- Of which: syndicated loans","400"]
[null,"Financial derivatives","410"]
[null,"Other liabilities","420"]
[null,"- Of which: in euros","430"]
[null,"- Of which: accrued interest payable on securities","440"]
[null,"- Of which: Valuation discrepancy debt securities (market - nominal value)","450"]
[null,"- Of which: Adjustment for accounting/statistical discrepancies","451"]
[null,"Total liabilities","470"]
[null,"Holdings of own securities",""]
[null,"Own holdings of debt securities (market value)","480"]
[null,"Own holdings of equity issued (market value)","490"]
[null,null,null,null,null,null,null,null,null,{"$f":"Show!$B$10&Show!$B$10&\"T9001HK6 Rows {\"&COLUMN($C$1)&\"}\"","v":"!!T9001HK6 Rows {3}"},{"$f":"Show!$B$10&Show!$B$10&\"T9001HK6 Columns {\"&COLUMN($F$1)&\"}\"","v":"!!T9001HK6 Columns {6}"}]

{"sheet":"T9007HK1","index":14,"n_rows":99,"n_cols":30,"rows_kept":99,"cut":false,"hidden":true,"merged":[[14,9,15,9],[14,10,15,10],[14,11,15,11],[14,12,15,12],[14,13,14,16],[13,12,13,18],[13,19,15,19],[13,20,15,20],[13,21,13,22],[13,23,15,23],[14,17,15,17],[14,18,15,18],[14,21,15,21],[14,22,15,22],[1,1,1,14],[4,1,4,11],[9,3,10,24],[11,3,11,7],[11,8,11,23],[11,24,15,24],[12,3,15,3],[12,4,12,6],[12,7,15,7],[12,8,12,11],[12,12,12,23],[13,4,15,4],[13,5,15,5],[13,6,15,6],[13,8,15,8],[13,9,13,11]]}
["Back to Index"]
[null,"Table group 4a: Write-downs and other price revaluations, additional information for sector MFIs, government and private sector"]
[]
[]
[null,"T9007HK1 - Write-downs and other price revaluations, additional information for sector MFIs, government and private sector"]
[]
[null,"Counterparty country/group","Z001",null,null,null,{"$f":"Show!$B$11&\"T9007HK1 Table label {\"&COLUMN($C$1)&\"}\"","v":"!T9007HK1 Table label {3}"},{"$f":"Show!$B$11&\"T9007HK1 Table value {\"&COLUMN($D$1)&\"}\"","v":"!T9007HK1 Table value {4}"}]
[null,null,null,null,null,null,{"$f":"Show!$B$11&Show!$B$11&\"T9007HK1 Table label {\"&COLUMN($C$1)&\"}\"","v":"!!T9007HK1 Table label {3}"},{"$f":"Show!$B$11&Show!$B$11&\"T9007HK1 Table value {\"&COLUMN($D$1)&\"}\"","v":"!!T9007HK1 Table value {4}"}]
[]
[null,null,null,"x-axis"]
[]
[null,null,null,"MFIs",null,null,null,null,"Government and private sector",null,null,null,null,null,null,null,null,null,null,null,null,null,null,null,"Total all sectors"]
[null,null,null,"Central bank (S.121)","Deposit-taking corporations (S.122)",null,null,"Money market funds (S.123)","Government (S.13)",null,null,null,"Private sector"]
[null,null,null,null,"Credit institutions within own group","Credit institutions outside own group","Deposit-taking corporations other than credit institutions",null,"Central government (S.1311)","Other government",null,null,"Other financial institutions (OFIs)",null,null,null,null,null,null,"Insurance corporations  (S.128)","Pension funds (S.129)","Non-financial corporations (S.11)",null,"Households (S.14 + S.15)"]
[null,null,null,null,null,null,null,null,null,"State government (S.1312)","Local government (S.1313)","Social security funds (S.1314)","Investment funds (S.124)","Other financial intermediaries (S.125)",null,null,null,"Financial auxiliaries (S.126)","Captive financial institutions \nand money lenders (S.127)",null,null,"Non-financial private corporations","Non-financial public corporations"]
[null,null,null,null,null,null,null,null,null,null,null,null,null,"Financial vehicle corporations","Central counterparties (CCP)","Systemic investment firms (SIF)","Remaining other financial intermediaries"]
[null,null,null,"011","012","013","014","015","040","050","060","070","080","090","100","101","111","112","113","120","130","140","150","160","170",null,null,null,{"$f":"Show!$B$11&\"T9007HK1 Rows {\"&COLUMN($C$1)&\"}\"&Index!$E$15","v":"!T9007HK1 Rows {3}"},{"$f":"Show!$B$11&\"T9007HK1 Columns {\"&COLUMN($D$1)&\"}\"","v":"!T9007HK1 Columns {4}"}]
[null,"y-axis",""]
[null,"Assets",""]
[null,"Shares held","010"]
[null,"- Listed","011"]
[null,"- Non Listed","012"]
[null,"Shares / units","013"]
[null,"Participations","020"]
[null,"Debt securities held","030"]
[null,"- Maturity <= 1 year","040"]
[null,"- 1 year < maturity <= 2 year","050"]
[null,"- Maturity > 2 years","060"]
[null,"- Of which: in euros","070"]
[null,"- Maturity <= 1 year","080"]
[null,"- 1 year < maturity <= 2 years","090"]
[null,"- Maturity > 2 years","100"]
[null,"Loans granted and deposits placed (maturity and currency)","110"]
[null,"- Maturity <= 1 year","120"]
[null,"- > 1 year maturity <= 2 years","131"]
[null,"- > 2 years maturity <= 5 years","132"]
[null,"- Maturity > 5 yearss","140"]
[null,"- Of which: in euros","150"]
[null,"- Maturity <= 1 year","160"]
[null,"- > 1 year maturity <= 2 years","171"]
[null,"- > 2 years maturity <= 5 years","172"]
[null,"- Maturity > 5 years","180"]
[null,"Loans for house purchases",""]
[null,"- Maturity <= 1 year","190"]
[null,"- > 1 year maturity <= 2 years","201"]
[null,"- > 2 years maturity <= 5 years","202"]
[null,"- Maturity > 5 years","210"]
[null,"- Of which: in euros",""]
[null,"- Maturity <= 1 year","220"]
[null,"- > 1 year maturity <= 2 years","231"]
[null,"- > 2 years maturity <= 5 years","232"]
[null,"- Maturity > 5 years","240"]
[null,"Loans for consumption (personal)",""]
[null,"- Maturity <= 1 year","250"]
[null,"- > 1 year maturity <= 2 years","261"]
[null,"- > 2 years maturity <= 5 years","262"]
[null,"- Maturity > 5 years","270"]
[null,"- Of which: in euros",""]
[null,"- Maturity <= 1 year","280"]
[null,"- > 1 year maturity <= 2 years","291"]
[null,"- > 2 years maturity <= 5 years","292"]
[null,"- Maturity > 5 years","300"]
[null,"Revolving loans","310"]
[null,"- Of which: in euros","320"]
[null,"Overdrafts (current account)","330"]
[null,"- Of which: in euros","340"]
[null,"Credit card",""]
[null,"Convenience credit card","350"]
[null,"- Of which: in euros","360"]
[null,"Extended credit","370"]
[null,"- Of which: in euros","380"]
[null,"Other loans",""]
[null,"- Maturity <= 1 year","390"]
[null,"- > 1 year maturity <= 2 years","401"]
[null,"- > 2 years maturity <= 5 years","402"]
[null,"- Maturity > 5 years","410"]
[null,"- Of which: in euros",""]
[null,"- Maturity <= 1 year","420"]
[null,"- > 1 year maturity <= 2 years","431"]
[null,"- > 2 years maturity <= 5 years","432"]
[null,"- Maturity > 5 years","440"]
[null,"Loans granted and deposits placed (some ‘of which’ positions)",""]
[null,"- Of which: syndicated loans","450"]
[null,"- Of which notional cash pooling","451"]
[null,"- Of which in: euro","452"]
[null,"- Of which in: US dollars","453"]
[null,"Financial derivatives","460"]
[null,"Other assets","470"]
[null,"Liabilities",""]
[null,"Equity capital of associates","480"]
[null,"Loans and deposits received (per maturity/currency)","490"]
[null,"- Maturity <= 1 year","500"]
[null,"- Maturity > 1 year","510"]
[null,"- Of which: in euros",""]
[null,"- Maturity <= 1 year","520"]
[null,"- Maturity > 1 year","530"]
[null,"Financial derivatives","540"]
[null,"Other liabilities","550"]
[null,null,null,null,null,null,null,null,null,null,null,null,null,null,null,null,null,null,null,null,null,null,null,null,null,null,null,null,{"$f":"Show!$B$11&Show!$B$11&\"T9007HK1 Rows {\"&COLUMN($C$1)&\"}\"","v":"!!T9007HK1 Rows {3}"},{"$f":"Show!$B$11&Show!$B$11&\"T9007HK1 Columns {\"&COLUMN($Y$1)&\"}\"","v":"!!T9007HK1 Columns {25}"}]

{"sheet":"T9007HK2","index":15,"n_rows":36,"n_cols":10,"rows_kept":36,"cut":false,"hidden":true,"merged":[[1,1,1,14],[4,1,4,11],[9,3,10,4],[11,3,13,3],[11,4,13,4]]}
["Back to Index"]
[null,"Table group 4b: Price revaluations for loans granted with over-coverage of real estate as collateral (LTV ratio <= 1)"]
[]
[]
[null,"T9007HK2 - Price revaluations for loans granted with over-coverage of real estate as collateral (LTV ratio <= 1)"]
[]
[null,"Counterparty country/group","Z001",null,null,null,{"$f":"Show!$B$12&\"T9007HK2 Table label {\"&COLUMN($C$1)&\"}\"","v":"!T9007HK2 Table label {3}"},{"$f":"Show!$B$12&\"T9007HK2 Table value {\"&COLUMN($D$1)&\"}\"","v":"!T9007HK2 Table value {4}"}]
[null,null,null,null,null,null,{"$f":"Show!$B$12&Show!$B$12&\"T9007HK2 Table label {\"&COLUMN($C$1)&\"}\"","v":"!!T9007HK2 Table label {3}"},{"$f":"Show!$B$12&Show!$B$12&\"T9007HK2 Table value {\"&COLUMN($D$1)&\"}\"","v":"!!T9007HK2 Table value {4}"}]
[]
[null,null,null,"x-axis"]
[]
[null,null,null,"Non-financial corporations (S.11)","Households (S.14 + S.15)"]
[]
[]
[null,null,null,"010","020",null,null,null,{"$f":"Show!$B$12&\"T9007HK2 Rows {\"&COLUMN($C$1)&\"}\"&Index!$E$16","v":"!T9007HK2 Rows {3}"},{"$f":"Show!$B$12&\"T9007HK2 Columns {\"&COLUMN($D$1)&\"}\"","v":"!T9007HK2 Columns {4}"}]
[null,"y-axis",""]
[null,"Assets",""]
[null,"Loans granted and deposits placed","010"]
[null,"- Of which: in euro","020"]
[null,"Loans for house purchases","030"]
[null,"- Of which: in euro","040"]
[null,"Loans for consumption (personal)",""]
[null,"- Maturity <= 1 year","050"]
[null,"- > 1 year maturity <= 2 years","061"]
[null,"- > 2 years maturity <= 5 years","062"]
[null,"- Maturity > 5 years","070"]
[null,"- Of which: in euros","080"]
[null,"Revolving loans","090"]
[null,"- Of which: in euro","100"]
[null,"Overdrafts","110"]
[null,"- Of which: in euro","120"]
[null,"Credit card","130"]
[null,"- Of which: in euro","140"]
[null,"Other loans","150"]
[null,"- Of which: in euro","160"]
[null,null,null,null,null,null,null,null,{"$f":"Show!$B$12&Show!$B$12&\"T9007HK2 Rows {\"&COLUMN($C$1)&\"}\"","v":"!!T9007HK2 Rows {3}"},{"$f":"Show!$B$12&Show!$B$12&\"T9007HK2 Columns {\"&COLUMN($E$1)&\"}\"","v":"!!T9007HK2 Columns {5}"}]

{"sheet":"T9007HK3","index":16,"n_rows":22,"n_cols":15,"rows_kept":22,"cut":false,"hidden":true,"merged":[[1,1,1,14],[4,1,4,11],[9,3,10,9],[11,3,11,4],[11,5,11,6]]}
["Back to Index"]
[null,"Table group 4c: Other flows of participations and loans, additional information for sector MFIs, government and private sector"]
[]
[]
[null,"T9007HK3 - Other flows of participations and loans, additional information for sector MFIs, government and private sector"]
[]
[null,"Counterparty country/group","Z001",null,null,null,{"$f":"Show!$B$13&\"T9007HK3 Table label {\"&COLUMN($C$1)&\"}\"","v":"!T9007HK3 Table label {3}"},{"$f":"Show!$B$13&\"T9007HK3 Table value {\"&COLUMN($D$1)&\"}\"","v":"!T9007HK3 Table value {4}"}]
[null,null,null,null,null,null,{"$f":"Show!$B$13&Show!$B$13&\"T9007HK3 Table label {\"&COLUMN($C$1)&\"}\"","v":"!!T9007HK3 Table label {3}"},{"$f":"Show!$B$13&Show!$B$13&\"T9007HK3 Table value {\"&COLUMN($D$1)&\"}\"","v":"!!T9007HK3 Table value {4}"}]
[]
[null,null,null,"x-axis"]
[]
[null,null,null,"Purchases by investor (transaction value)",null,"Sales by the investor (transaction value)",null,"Accrued interest during the month","Payed or received interest","Declared dividend"]
[null,null,null,"MFIs","Government and private sector","MFIs","Government and private sector","Total all sectors","Total all sectors","Total all sectors"]
[null,null,null,"010","020","030","040","050","060","070",null,null,null,{"$f":"Show!$B$13&\"T9007HK3 Rows {\"&COLUMN($C$1)&\"}\"&Index!$E$17","v":"!T9007HK3 Rows {3}"},{"$f":"Show!$B$13&\"T9007HK3 Columns {\"&COLUMN($D$1)&\"}\"","v":"!T9007HK3 Columns {4}"}]
[null,"y-axis",""]
[null,"Assets",""]
[null,"Participations","010"]
[null,"Loans granted and deposits placed","020"]
[null,"Liabilities",""]
[null,"Equity capital of associates","030"]
[null,"Loans and deposits received","040"]
[null,null,null,null,null,null,null,null,null,null,null,null,null,{"$f":"Show!$B$13&Show!$B$13&\"T9007HK3 Rows {\"&COLUMN($C$1)&\"}\"","v":"!!T9007HK3 Rows {3}"},{"$f":"Show!$B$13&Show!$B$13&\"T9007HK3 Columns {\"&COLUMN($J$1)&\"}\"","v":"!!T9007HK3 Columns {10}"}]

{"sheet":"T9007HK4","index":17,"n_rows":56,"n_cols":11,"rows_kept":56,"cut":false,"hidden":true,"merged":[[1,1,1,14],[4,1,4,11],[8,3,9,5],[10,3,14,3],[10,4,14,4],[10,5,14,5]]}
["Back to Index"]
[null,"Table group 4d: Total overview of write-downs and other price revaluations, additional information for total all sectors, not-allocated and grand total"]
[]
[]
[null,"T9007HK4 - Total overview of write-downs and other price revaluations, additional information for total all sectors, not-allocated and grand total"]
[]
[]
[]
[null,null,null,"x-axis"]
[]
[null,null,null,"Total all sectors","Not allocated","Grand total"]
[]
[]
[]
[]
[null,null,null,"010","020","030",null,null,null,{"$f":"Show!$B$14&\"T9007HK4 Rows {\"&COLUMN($C$1)&\"}\"&Index!$E$18","v":"!T9007HK4 Rows {3}"},{"$f":"Show!$B$14&\"T9007HK4 Columns {\"&COLUMN($D$1)&\"}\"","v":"!T9007HK4 Columns {4}"}]
[null,"y-axis",""]
[null,"Assets",""]
[null,"Shares / units","009"]
[null,"Shares held","010"]
[null,"Participations","020"]
[null,"Debt securities held","030"]
[null,"Loans granted and deposits placed","040"]
[null,"Non-financial assets (including fixed assets)","050"]
[null,"- of which: real estate holdings","051"]
[null,"Financial derivatives","060"]
[null,"Other assets","070"]
[null,"Total assets","080"]
[null,"Liabilities",""]
[null,"Capital and reserves","090"]
[null,"- Of which: Shares / participations issued by money market funds","100"]
[null,"- Of which: Accrued equity capital of associates including agio","110"]
[null,"- Of which: Accumulated profit (or loss) as recorded in the profit and loss account","120"]
[null,"- Of which: Income and expenses processed directly in equity of associates","130"]
[null,"- Of which: Unpaid earnings or funds (including general and specific reserves)","140"]
[null,"- Of which: Provisions","150"]
[null,"Debt securities issued",""]
[null,"- Of which: in euros",""]
[null,"- Maturity <= 1 year","160"]
[null,"- Of which: nominal capital guarantee < 100%","170"]
[null,"- 1 year < maturity <= 2 years","180"]
[null,"- Of which: nominal capital guarantee < 100%","190"]
[null,"- Maturity > 2 years","200"]
[null,"- Of which: in other currencies",""]
[null,"- Maturity <= 1 year","210"]
[null,"- Of which: nominal capital guarantee < 100%","220"]
[null,"- 1 year < maturity <= 2 years","230"]
[null,"- Of which: nominal capital guarantee < 100%","240"]
[null,"- Maturity > 2 years","250"]
[null,"Loans and deposits received","260"]
[null,"Financial derivatives","270"]
[null,"Other liabilities","280"]
[null,"- Of which valuation discrepancy debt securities (market - nominal value)","290"]
[null,"- Of which Adjustment for accounting/statistical discrepancies","291"]
[null,"Total liabilities","300"]
[null,null,null,null,null,null,null,null,null,{"$f":"Show!$B$14&Show!$B$14&\"T9007HK4 Rows {\"&COLUMN($C$1)&\"}\"","v":"!!T9007HK4 Rows {3}"},{"$f":"Show!$B$14&Show!$B$14&\"T9007HK4 Columns {\"&COLUMN($F$1)&\"}\"","v":"!!T9007HK4 Columns {6}"}]

{"sheet":"T9013HK1","index":18,"n_rows":44,"n_cols":19,"rows_kept":44,"cut":false,"hidden":true,"merged":[[1,1,1,14],[4,1,4,11],[12,3,13,13],[14,3,16,3],[14,4,14,5],[14,6,16,6],[14,7,16,7],[14,8,16,8],[14,9,16,9],[14,10,14,11],[14,12,16,12],[14,13,16,13],[15,4,16,4],[15,5,16,5],[15,10,16,10],[15,11,16,11]]}
["Back to Index"]
[null,"Table group 5: Securitisation and other loan transfers"]
[]
[]
[null,"T9013HK1 - Gross flows (sold vs. repurchased) of securitised loans transferred to FVCs - Transactions with effect on reported position of loans in MFI balance sheet (‘derecognised’)"]
[]
[null,"Counterparty country/group","Z001",null,null,null,{"$f":"Show!$B$15&\"T9013HK1 Table label {\"&COLUMN($C$1)&\"}\"","v":"!T9013HK1 Table label {3}"},{"$f":"Show!$B$15&\"T9013HK1 Table value {\"&COLUMN($D$1)&\"}\"","v":"!T9013HK1 Table value {4}"}]
[null,"Gross flows","Z002"]
[null,"Country of origin SPV, as of 30-06-2023","Z003"]
[null,"Servicer","Z004"]
[null,null,null,null,null,null,{"$f":"Show!$B$15&Show!$B$15&\"T9013HK1 Table label {\"&COLUMN($C$1)&\"}\"","v":"!!T9013HK1 Table label {3}"},{"$f":"Show!$B$15&Show!$B$15&\"T9013HK1 Table value {\"&COLUMN($D$1)&\"}\"","v":"!!T9013HK1 Table value {4}"}]
[]
[null,null,null,"x-axis"]
[]
[null,null,null,"MFIs (S.121 + S.122 + S.123)","Government (S.13)",null,"Investment funds (S.124)","Other financial intermediaries (excl. investment institutions) (S.125 + S.126 + S.127)","Insurance corporations  (S.128)","Pension funds (S.129)","Non-financial corporations (S.11)",null,"Households (S.14+S.15)","Total all sectors"]
[null,null,null,null,"Central government (S.1311)","Other government (S.1312 + S.1313 + S.1314)",null,null,null,null,"Non-financial private corporations","Non-financial public corporations"]
[]
[null,null,null,"010","020","030","040","050","060","070","080","090","100","110",null,null,null,{"$f":"Show!$B$15&\"T9013HK1 Rows {\"&COLUMN($C$1)&\"}\"&Index!$E$19","v":"!T9013HK1 Rows {3}"},{"$f":"Show!$B$15&\"T9013HK1 Columns {\"&COLUMN($D$1)&\"}\"","v":"!T9013HK1 Columns {4}"}]
[null,"y-axis",""]
[null,"Assets",""]
[null,"Loans granted and deposits placed","010"]
[null,"- Maturity <= 1 year","020"]
[null,"- > 1 year maturity <= 2 years","031"]
[null,"- > 2 years maturity <= 5 years","032"]
[null,"- Maturity > 5 years","040"]
[null,"Loans for house purchases",""]
[null,"- Maturity <= 1 year","050"]
[null,"- > 1 year maturity <= 2 years","061"]
[null,"- > 2 years maturity <= 5 years","062"]
[null,"- Maturity > 5 years","070"]
[null,"Loans for consumption (personal)",""]
[null,"- Maturity <= 1 year","080"]
[null,"- > 1 year maturity <= 2 years","091"]
[null,"- > 2 years maturity <= 5 years","092"]
[null,"- Maturity > 5 years","100"]
[null,"Revolving loans","110"]
[null,"Overdrafts","120"]
[null,"Credit card","130"]
[null,"Other loans",""]
[null,"- Maturity <= 1 year","140"]
[null,"- > 1 year maturity <= 2 years","151"]
[null,"- > 2 years maturity <= 5 years","152"]
[null,"- Maturity > 5 years","160"]
[null,null,null,null,null,null,null,null,null,null,null,null,null,null,null,null,null,{"$f":"Show!$B$15&Show!$B$15&\"T9013HK1 Rows {\"&COLUMN($C$1)&\"}\"","v":"!!T9013HK1 Rows {3}"},{"$f":"Show!$B$15&Show!$B$15&\"T9013HK1 Columns {\"&COLUMN($N$1)&\"}\"","v":"!!T9013HK1 Columns {14}"}]

{"sheet":"T9013HK2","index":19,"n_rows":42,"n_cols":19,"rows_kept":42,"cut":false,"hidden":true,"merged":[[1,1,1,14],[4,1,4,11],[10,3,11,13],[12,3,14,3],[12,4,12,5],[12,6,14,6],[12,7,14,7],[12,8,14,8],[12,9,14,9],[12,10,12,11],[12,12,14,12],[12,13,14,13],[13,4,14,4],[13,5,14,5],[13,10,14,10],[13,11,14,11]]}
["Back to Index"]
[null,"Table group 5: Securitisation and other loan transfers"]
[]
[]
[null,"T9013HK2 - Net flows (sales less repurchases) of securitised loans to FVCs - Transactions without effect on reported position of loans in MFI balance sheet (‘not derecognised’)"]
[]
[null,"Counterparty country/group","Z001",null,null,null,{"$f":"Show!$B$16&\"T9013HK2 Table label {\"&COLUMN($C$1)&\"}\"","v":"!T9013HK2 Table label {3}"},{"$f":"Show!$B$16&\"T9013HK2 Table value {\"&COLUMN($D$1)&\"}\"","v":"!T9013HK2 Table value {4}"}]
[null,"Country of origin SPV, as of 30-06-2023","Z002"]
[null,null,null,null,null,null,{"$f":"Show!$B$16&Show!$B$16&\"T9013HK2 Table label {\"&COLUMN($C$1)&\"}\"","v":"!!T9013HK2 Table label {3}"},{"$f":"Show!$B$16&Show!$B$16&\"T9013HK2 Table value {\"&COLUMN($D$1)&\"}\"","v":"!!T9013HK2 Table value {4}"}]
[]
[null,null,null,"x-axis"]
[]
[null,null,null,"MFIs (S.121 + S.122 + S.123)","Government (S.13)",null,"Investment funds (S.124)","Other financial intermediaries (excl. investment institutions) (S.125 + S.126 + S.127)","Insurance corporations (S.128)","Pension funds (S.129)","Non-financial corporations (S.11)",null,"Households (S.14+S.15)","Total all sectors"]
[null,null,null,null,"Central government (S.1311)","Other government (S.1312 + S.1313 + S.1314)",null,null,null,null,"Non-financial private corporations","Non-financial public corporations"]
[]
[null,null,null,"010","020","030","040","050","060","070","080","090","100","110",null,null,null,{"$f":"Show!$B$16&\"T9013HK2 Rows {\"&COLUMN($C$1)&\"}\"&Index!$E$20","v":"!T9013HK2 Rows {3}"},{"$f":"Show!$B$16&\"T9013HK2 Columns {\"&COLUMN($D$1)&\"}\"","v":"!T9013HK2 Columns {4}"}]
[null,"y-axis",""]
[null,"Assets",""]
[null,"Loans granted and deposits placed","010"]
[null,"- Maturity <= 1 year","020"]
[null,"- > 1 year maturity <= 2 years","031"]
[null,"- > 2 years maturity <= 5 years","032"]
[null,"- Maturity > 5 years","040"]
[null,"Loans for house purchases",""]
[null,"- Maturity <= 1 year","050"]
[null,"- > 1 year maturity <= 2 years","061"]
[null,"- > 2 years maturity <= 5 years","062"]
[null,"- Maturity > 5 years","070"]
[null,"Loans for consumption (personal)",""]
[null,"- Maturity <= 1 year","080"]
[null,"- > 1 year maturity <= 2 years","091"]
[null,"- > 2 years maturity <= 5 years","092"]
[null,"- Maturity > 5 years","100"]
[null,"Revolving loans","110"]
[null,"Overdrafts","120"]
[null,"Credit card","130"]
[null,"Other loans",""]
[null,"- Maturity <= 1 year","140"]
[null,"- > 1 year maturity <= 2 years","151"]
[null,"- > 2 years maturity <= 5 years","152"]
[null,"- Maturity > 5 years","160"]
[null,null,null,null,null,null,null,null,null,null,null,null,null,null,null,null,null,{"$f":"Show!$B$16&Show!$B$16&\"T9013HK2 Rows {\"&COLUMN($C$1)&\"}\"","v":"!!T9013HK2 Rows {3}"},{"$f":"Show!$B$16&Show!$B$16&\"T9013HK2 Columns {\"&COLUMN($N$1)&\"}\"","v":"!!T9013HK2 Columns {14}"}]

{"sheet":"T9013HK3","index":20,"n_rows":42,"n_cols":19,"rows_kept":42,"cut":false,"hidden":true,"merged":[[1,1,1,14],[4,1,4,11],[10,3,11,13],[12,3,14,3],[12,4,12,5],[12,6,14,6],[12,7,14,7],[12,8,14,8],[12,9,14,9],[12,10,12,11],[12,12,14,12],[12,13,14,13],[13,4,14,4],[13,5,14,5],[13,10,14,10],[13,11,14,11]]}
["Back to Index"]
[null,"Table group 5: Securitisation and other loan transfers"]
[]
[]
[null,"T9013HK3 - Outstanding amounts of securitised loans transferred to FVCs (‘derecognised’) serviced by reporting agent"]
[]
[null,"Counterparty country/group","Z001",null,null,null,{"$f":"Show!$B$17&\"T9013HK3 Table label {\"&COLUMN($C$1)&\"}\"","v":"!T9013HK3 Table label {3}"},{"$f":"Show!$B$17&\"T9013HK3 Table value {\"&COLUMN($D$1)&\"}\"","v":"!T9013HK3 Table value {4}"}]
[null,"Country of origin SPV, as of 30-06-2023","Z002"]
[null,null,null,null,null,null,{"$f":"Show!$B$17&Show!$B$17&\"T9013HK3 Table label {\"&COLUMN($C$1)&\"}\"","v":"!!T9013HK3 Table label {3}"},{"$f":"Show!$B$17&Show!$B$17&\"T9013HK3 Table value {\"&COLUMN($D$1)&\"}\"","v":"!!T9013HK3 Table value {4}"}]
[]
[null,null,null,"x-axis"]
[]
[null,null,null,"MFIs (S.121 + S.122 + S.123)","Government (S.13)",null,"Investment funds (S.124)","Other financial intermediaries (excl. investment institutions) (S.125 + S.126 + S.127)","Insurance corporations (S.128)","Pension funds (S.129)","Non-financial corporations (S.11)",null,"Households (S.14+S.15)","Total all sectors"]
[null,null,null,null,"Central government (S.1311)","Other government (S.1312 + S.1313 + S.1314)",null,null,null,null,"Non-financial private corporations","Non-financial public corporations"]
[]
[null,null,null,"010","020","030","040","050","060","070","080","090","100","110",null,null,null,{"$f":"Show!$B$17&\"T9013HK3 Rows {\"&COLUMN($C$1)&\"}\"&Index!$E$21","v":"!T9013HK3 Rows {3}"},{"$f":"Show!$B$17&\"T9013HK3 Columns {\"&COLUMN($D$1)&\"}\"","v":"!T9013HK3 Columns {4}"}]
[null,"y-axis",""]
[null,"Assets",""]
[null,"Loans granted and deposits placed","010"]
[null,"- Maturity <= 1 year","020"]
[null,"- > 1 year maturity <= 2 years","031"]
[null,"- > 2 years maturity <= 5 years","032"]
[null,"- Maturity > 5 years","040"]
[null,"Loans for house purchases",""]
[null,"- Maturity <= 1 year","050"]
[null,"- > 1 year maturity <= 2 years","061"]
[null,"- > 2 years maturity <= 5 years","062"]
[null,"- Maturity > 5 years","070"]
[null,"Loans for consumption (personal)",""]
[null,"- Maturity <= 1 year","080"]
[null,"- > 1 year maturity <= 2 years","091"]
[null,"- > 2 years maturity <= 5 years","092"]
[null,"- Maturity > 5 years","100"]
[null,"Revolving loans","110"]
[null,"Overdrafts","120"]
[null,"Credit card","130"]
[null,"Other loans",""]
[null,"- Maturity <= 1 year","140"]
[null,"- > 1 year maturity <= 2 years","151"]
[null,"- > 2 years maturity <= 5 years","152"]
[null,"- Maturity > 5 years","160"]
[null,null,null,null,null,null,null,null,null,null,null,null,null,null,null,null,null,{"$f":"Show!$B$17&Show!$B$17&\"T9013HK3 Rows {\"&COLUMN($C$1)&\"}\"","v":"!!T9013HK3 Rows {3}"},{"$f":"Show!$B$17&Show!$B$17&\"T9013HK3 Columns {\"&COLUMN($N$1)&\"}\"","v":"!!T9013HK3 Columns {14}"}]

{"sheet":"T9013HK4","index":21,"n_rows":42,"n_cols":19,"rows_kept":42,"cut":false,"hidden":true,"merged":[[1,1,1,14],[4,1,4,11],[10,3,11,13],[12,3,14,3],[12,4,12,5],[12,6,14,6],[12,7,14,7],[12,8,14,8],[12,9,14,9],[12,10,12,11],[12,12,14,12],[12,13,14,13],[13,4,14,4],[13,5,14,5],[13,10,14,10],[13,11,14,11]]}
["Back to Index"]
[null,"Table group 5: Securitisation and other loan transfers"]
[]
[]
[null,"T9013HK4 - Outstanding amounts of securitised loans not tranferred to FVCs ('not derecognised')"]
[]
[null,"Counterparty country/group","Z001",null,null,null,{"$f":"Show!$B$18&\"T9013HK4 Table label {\"&COLUMN($C$1)&\"}\"","v":"!T9013HK4 Table label {3}"},{"$f":"Show!$B$18&\"T9013HK4 Table value {\"&COLUMN($D$1)&\"}\"","v":"!T9013HK4 Table value {4}"}]
[null,"Country of origin SPV, as of 30-06-2023","Z002"]
[null,null,null,null,null,null,{"$f":"Show!$B$18&Show!$B$18&\"T9013HK4 Table label {\"&COLUMN($C$1)&\"}\"","v":"!!T9013HK4 Table label {3}"},{"$f":"Show!$B$18&Show!$B$18&\"T9013HK4 Table value {\"&COLUMN($D$1)&\"}\"","v":"!!T9013HK4 Table value {4}"}]
[]
[null,null,null,"x-axis"]
[]
[null,null,null,"MFIs (S.121 + S.122 + S.123)","Government (S.13)",null,"Investment funds (S.124)","Other financial intermediaries (excl. investment institutions) (S.125 + S.126 + S.127)","Insurance corporations (S.128)","Pension funds (S.129)","Non-financial corporations (S.11)",null,"Households (S.14+S.15)","Total all sectors"]
[null,null,null,null,"Central government (S.1311)","Other government (S.1312 + S.1313 + S.1314)",null,null,null,null,"Non-financial private corporations","Non-financial public corporations"]
[]
[null,null,null,"010","020","030","040","050","060","070","080","090","100","110",null,null,null,{"$f":"Show!$B$18&\"T9013HK4 Rows {\"&COLUMN($C$1)&\"}\"&Index!$E$22","v":"!T9013HK4 Rows {3}"},{"$f":"Show!$B$18&\"T9013HK4 Columns {\"&COLUMN($D$1)&\"}\"","v":"!T9013HK4 Columns {4}"}]
[null,"y-axis",""]
[null,"Assets",""]
[null,"Loans granted and deposits placed","010"]
[null,"- Maturity <= 1 year","020"]
[null,"- > 1 year maturity <= 2 years","031"]
[null,"- > 2 years maturity <= 5 years","032"]
[null,"- Maturity > 5 years","040"]
[null,"Loans for house purchases",""]
[null,"- Maturity <= 1 year","050"]
[null,"- > 1 year maturity <= 2 years","061"]
[null,"- > 2 years maturity <= 5 years","062"]
[null,"- Maturity > 5 years","070"]
[null,"Loans for consumption (personal)",""]
[null,"- Maturity <= 1 year","080"]
[null,"- > 1 year maturity <= 2 years","091"]
[null,"- > 2 years maturity <= 5 years","092"]
[null,"- Maturity > 5 years","100"]
[null,"Revolving loans","110"]
[null,"Overdrafts","120"]
[null,"Credit card","130"]
[null,"Other loans",""]
[null,"- Maturity <= 1 year","140"]
[null,"- > 1 year maturity <= 2 years","151"]
[null,"- > 2 years maturity <= 5 years","152"]
[null,"- Maturity > 5 years","160"]
[null,null,null,null,null,null,null,null,null,null,null,null,null,null,null,null,null,{"$f":"Show!$B$18&Show!$B$18&\"T9013HK4 Rows {\"&COLUMN($C$1)&\"}\"","v":"!!T9013HK4 Rows {3}"},{"$f":"Show!$B$18&Show!$B$18&\"T9013HK4 Columns {\"&COLUMN($N$1)&\"}\"","v":"!!T9013HK4 Columns {14}"}]

{"sheet":"T9013HK5","index":22,"n_rows":45,"n_cols":19,"rows_kept":45,"cut":false,"hidden":true,"merged":[[1,1,1,14],[4,1,4,11],[13,3,14,13],[15,3,17,3],[15,4,15,5],[15,6,17,6],[15,7,17,7],[15,8,17,8],[15,9,17,9],[15,10,15,11],[15,12,17,12],[15,13,17,13],[16,4,17,4],[16,5,17,5],[16,10,17,10],[16,11,17,11]]}
["Back to Index"]
[null,"Table group 5: Securitisation and other loan transfers"]
[]
[]
[null,"T9013HK5 - Gross flows (sales/repurchases) of loans transferred to non-FVCs. With impact on reported stock."]
[]
[null,"Counterparty country/group","Z001",null,null,null,{"$f":"Show!$B$19&\"T9013HK5 Table label {\"&COLUMN($C$1)&\"}\"","v":"!T9013HK5 Table label {3}"},{"$f":"Show!$B$19&\"T9013HK5 Table value {\"&COLUMN($D$1)&\"}\"","v":"!T9013HK5 Table value {4}"}]
[null,"Counterparty countrygroup of transfer","Z002"]
[null,"Gross flows","Z003"]
[null,"Counterparty sector of transfer","Z004"]
[null,"Servicer","Z005"]
[null,null,null,null,null,null,{"$f":"Show!$B$19&Show!$B$19&\"T9013HK5 Table label {\"&COLUMN($C$1)&\"}\"","v":"!!T9013HK5 Table label {3}"},{"$f":"Show!$B$19&Show!$B$19&\"T9013HK5 Table value {\"&COLUMN($D$1)&\"}\"","v":"!!T9013HK5 Table value {4}"}]
[]
[null,null,null,"x-axis"]
[]
[null,null,null,"MFIs (S.121 + S.122 + S.123)","Government (S.13)",null,"Investment funds (S.124)","Other financial intermediaries (excl. investment institutions) (S.125 + S.126 + S.127)","Insurance corporations (S.128)","Pension funds (S.129)","Non-financial corporations (S.11)",null,"Households (S.14+S.15)","Total all sectors"]
[null,null,null,null,"Central government (S.1311)","Other government (S.1312 + S.1313 + S.1314)",null,null,null,null,"Non-financial private corporations","Non-financial public corporations"]
[]
[null,null,null,"010","020","030","040","050","060","070","080","090","100","110",null,null,null,{"$f":"Show!$B$19&\"T9013HK5 Rows {\"&COLUMN($C$1)&\"}\"&Index!$E$23","v":"!T9013HK5 Rows {3}"},{"$f":"Show!$B$19&\"T9013HK5 Columns {\"&COLUMN($D$1)&\"}\"","v":"!T9013HK5 Columns {4}"}]
[null,"y-axis",""]
[null,"Assets",""]
[null,"Loans granted and deposits placed","010"]
[null,"- Maturity <= 1 year","020"]
[null,"- > 1 year maturity <= 2 years","031"]
[null,"- > 2 years maturity <= 5 years","032"]
[null,"- Maturity > 5 years","040"]
[null,"Loans for house purchases",""]
[null,"- Maturity <= 1 year","050"]
[null,"- > 1 year maturity <= 2 years","061"]
[null,"- > 2 years maturity <= 5 years","062"]
[null,"- Maturity > 5 years","070"]
[null,"Loans for consumption (personal)",""]
[null,"- Maturity <= 1 year","080"]
[null,"- > 1 year maturity <= 2 years","091"]
[null,"- > 2 years maturity <= 5 years","092"]
[null,"- Maturity > 5 years","100"]
[null,"Revolving loans","110"]
[null,"Overdrafts","120"]
[null,"Credit card","130"]
[null,"Other loans",""]
[null,"- Maturity <= 1 year","140"]
[null,"- > 1 year maturity <= 2 years","151"]
[null,"- > 2 years maturity <= 5 years","152"]
[null,"- Maturity > 5 years","160"]
[null,null,null,null,null,null,null,null,null,null,null,null,null,null,null,null,null,{"$f":"Show!$B$19&Show!$B$19&\"T9013HK5 Rows {\"&COLUMN($C$1)&\"}\"","v":"!!T9013HK5 Rows {3}"},{"$f":"Show!$B$19&Show!$B$19&\"T9013HK5 Columns {\"&COLUMN($N$1)&\"}\"","v":"!!T9013HK5 Columns {14}"}]

{"sheet":"T9013HK6","index":23,"n_rows":43,"n_cols":19,"rows_kept":43,"cut":false,"hidden":true,"merged":[[1,1,1,14],[4,1,4,11],[11,3,12,13],[13,3,15,3],[13,4,13,5],[13,6,15,6],[13,7,15,7],[13,8,15,8],[13,9,15,9],[13,10,13,11],[13,12,15,12],[13,13,15,13],[14,4,15,4],[14,5,15,5],[14,10,15,10],[14,11,15,11]]}
["Back to Index"]
[null,"Table group 5: Securitisation and other loan transfers"]
[]
[]
[null,"T9013HK6 - Outstanding amount of loans transferred to non-FVCs and serviced by reporting agent. With impact on reported stock"]
[]
[null,"Counterparty country/group","Z001",null,null,null,{"$f":"Show!$B$20&\"T9013HK6 Table label {\"&COLUMN($C$1)&\"}\"","v":"!T9013HK6 Table label {3}"},{"$f":"Show!$B$20&\"T9013HK6 Table value {\"&COLUMN($D$1)&\"}\"","v":"!T9013HK6 Table value {4}"}]
[null,"Counterparty sector of transfer","Z002"]
[null,"Counterparty countrygroup of transfer","Z003"]
[null,null,null,null,null,null,{"$f":"Show!$B$20&Show!$B$20&\"T9013HK6 Table label {\"&COLUMN($C$1)&\"}\"","v":"!!T9013HK6 Table label {3}"},{"$f":"Show!$B$20&Show!$B$20&\"T9013HK6 Table value {\"&COLUMN($D$1)&\"}\"","v":"!!T9013HK6 Table value {4}"}]
[]
[null,null,null,"x-axis"]
[]
[null,null,null,"MFIs (S.121 + S.122 + S.123)","Government (S.13)",null,"Investment funds (S.124)","Other financial intermediaries (excl. investment institutions) (S.125 + S.126 + S.127)","Insurance corporations (S.128)","Pension funds (S.129)","Non-financial corporations (S.11)",null,"Households (S.14+S.15)","Total all sectors"]
[null,null,null,null,"Central government (S.1311)","Other government (S.1312 + S.1313 + S.1314)",null,null,null,null,"Non-financial private corporations","Non-financial public corporations"]
[]
[null,null,null,"010","020","030","040","050","060","070","080","090","100","110",null,null,null,{"$f":"Show!$B$20&\"T9013HK6 Rows {\"&COLUMN($C$1)&\"}\"&Index!$E$24","v":"!T9013HK6 Rows {3}"},{"$f":"Show!$B$20&\"T9013HK6 Columns {\"&COLUMN($D$1)&\"}\"","v":"!T9013HK6 Columns {4}"}]
[null,"y-axis",""]
[null,"Assets",""]
[null,"Loans granted and deposits placed","010"]
[null,"- Maturity <= 1 year","020"]
[null,"- > 1 year maturity <= 2 years","031"]
[null,"- > 2 years maturity <= 5 years","032"]
[null,"- Maturity > 5 years","040"]
[null,"Loans for house purchases",""]
[null,"- Maturity <= 1 year","050"]
[null,"- > 1 year maturity <= 2 years","061"]
[null,"- > 2 years maturity <= 5 years","062"]
[null,"- Maturity > 5 years","070"]
[null,"Loans for consumption (personal)",""]
[null,"- Maturity <= 1 year","080"]
[null,"- > 1 year maturity <= 2 years","091"]
[null,"- > 2 years maturity <= 5 years","092"]
[null,"- Maturity > 5 years","100"]
[null,"Revolving loans","110"]
[null,"Overdrafts","120"]
[null,"Credit card","130"]
[null,"Other loans",""]
[null,"- Maturity <= 1 year","140"]
[null,"- > 1 year maturity <= 2 years","151"]
[null,"- > 2 years maturity <= 5 years","152"]
[null,"- Maturity > 5 years","160"]
[null,null,null,null,null,null,null,null,null,null,null,null,null,null,null,null,null,{"$f":"Show!$B$20&Show!$B$20&\"T9013HK6 Rows {\"&COLUMN($C$1)&\"}\"","v":"!!T9013HK6 Rows {3}"},{"$f":"Show!$B$20&Show!$B$20&\"T9013HK6 Columns {\"&COLUMN($N$1)&\"}\"","v":"!!T9013HK6 Columns {14}"}]

{"sheet":"T9013HK7","index":24,"n_rows":43,"n_cols":19,"rows_kept":43,"cut":false,"hidden":true,"merged":[[1,1,1,14],[4,1,4,11],[11,3,12,13],[13,3,15,3],[13,4,13,5],[13,6,15,6],[13,7,15,7],[13,8,15,8],[13,9,15,9],[13,10,13,11],[13,12,15,12],[13,13,15,13],[14,4,15,4],[14,5,15,5],[14,10,15,10],[14,11,15,11]]}
["Back to Index"]
[null,"Table group 5: Securitisation and other loan transfers"]
[]
[]
[null,"T9013HK7 - Net flows (sales less repurchases) of loans transferred to non-FVCs. Without impact on reported stock"]
[]
[null,"Counterparty country/group","Z001",null,null,null,{"$f":"Show!$B$21&\"T9013HK7 Table label {\"&COLUMN($C$1)&\"}\"","v":"!T9013HK7 Table label {3}"},{"$f":"Show!$B$21&\"T9013HK7 Table value {\"&COLUMN($D$1)&\"}\"","v":"!T9013HK7 Table value {4}"}]
[null,"Counterparty sector of transfer","Z002"]
[null,"Counterparty countrygroup of transfer","Z003"]
[null,null,null,null,null,null,{"$f":"Show!$B$21&Show!$B$21&\"T9013HK7 Table label {\"&COLUMN($C$1)&\"}\"","v":"!!T9013HK7 Table label {3}"},{"$f":"Show!$B$21&Show!$B$21&\"T9013HK7 Table value {\"&COLUMN($D$1)&\"}\"","v":"!!T9013HK7 Table value {4}"}]
[]
[null,null,null,"x-axis"]
[]
[null,null,null,"MFIs (S.121 + S.122 + S.123)","Government (S.13)",null,"Investment funds (S.124)","Other financial intermediaries (excl. investment institutions) (S.125 + S.126 + S.127)","Insurance corporations (S.128)","Pension funds (S.129)","Non-financial corporations (S.11)",null,"Households (S.14+S.15)","Total all sectors"]
[null,null,null,null,"Central government (S.1311)","Other government (S.1312 + S.1313 + S.1314)",null,null,null,null,"Non-financial private corporations","Non-financial public corporations"]
[]
[null,null,null,"010","020","030","040","050","060","070","080","090","100","110",null,null,null,{"$f":"Show!$B$21&\"T9013HK7 Rows {\"&COLUMN($C$1)&\"}\"&Index!$E$25","v":"!T9013HK7 Rows {3}"},{"$f":"Show!$B$21&\"T9013HK7 Columns {\"&COLUMN($D$1)&\"}\"","v":"!T9013HK7 Columns {4}"}]
[null,"y-axis",""]
[null,"Assets",""]
[null,"Loans granted and deposits placed","010"]
[null,"- Maturity <= 1 year","020"]
[null,"- > 1 year maturity <= 2 years","031"]
[null,"- > 2 years maturity <= 5 years","032"]
[null,"- Maturity > 5 years","040"]
[null,"Loans for house purchases",""]
[null,"- Maturity <= 1 year","050"]
[null,"- > 1 year maturity <= 2 years","061"]
[null,"- > 2 years maturity <= 5 years","062"]
[null,"- Maturity > 5 years","070"]
[null,"Loans for consumption (personal)",""]
[null,"- Maturity <= 1 year","080"]
[null,"- > 1 year maturity <= 2 years","091"]
[null,"- > 2 years maturity <= 5 years","092"]
[null,"- Maturity > 5 years","100"]
[null,"Revolving loans","110"]
[null,"Overdrafts","120"]
[null,"Credit card","130"]
[null,"Other loans",""]
[null,"- Maturity <= 1 year","140"]
[null,"- > 1 year maturity <= 2 years","151"]
[null,"- > 2 years maturity <= 5 years","152"]
[null,"- Maturity > 5 years","160"]
[null,null,null,null,null,null,null,null,null,null,null,null,null,null,null,null,null,{"$f":"Show!$B$21&Show!$B$21&\"T9013HK7 Rows {\"&COLUMN($C$1)&\"}\"","v":"!!T9013HK7 Rows {3}"},{"$f":"Show!$B$21&Show!$B$21&\"T9013HK7 Columns {\"&COLUMN($N$1)&\"}\"","v":"!!T9013HK7 Columns {14}"}]

{"sheet":"T9013HK8","index":25,"n_rows":43,"n_cols":19,"rows_kept":43,"cut":false,"hidden":true,"merged":[[1,1,1,14],[4,1,4,11],[11,3,12,13],[13,3,15,3],[13,4,13,5],[13,6,15,6],[13,7,15,7],[13,8,15,8],[13,9,15,9],[13,10,13,11],[13,12,15,12],[13,13,15,13],[14,4,15,4],[14,5,15,5],[14,10,15,10],[14,11,15,11]]}
["Back to Index"]
[null,"Table group 5: Securitisation and other loan transfers"]
[]
[]
[null,"T9013HK8 - Outstanding amount of loans transferred to non-FVCs. Without impact on reported stock."]
[]
[null,"Counterparty country/group","Z001",null,null,null,{"$f":"Show!$B$22&\"T9013HK8 Table label {\"&COLUMN($C$1)&\"}\"","v":"!T9013HK8 Table label {3}"},{"$f":"Show!$B$22&\"T9013HK8 Table value {\"&COLUMN($D$1)&\"}\"","v":"!T9013HK8 Table value {4}"}]
[null,"Counterparty sector of transfer","Z002"]
[null,"Counterparty countrygroup of transfer","Z003"]
[null,null,null,null,null,null,{"$f":"Show!$B$22&Show!$B$22&\"T9013HK8 Table label {\"&COLUMN($C$1)&\"}\"","v":"!!T9013HK8 Table label {3}"},{"$f":"Show!$B$22&Show!$B$22&\"T9013HK8 Table value {\"&COLUMN($D$1)&\"}\"","v":"!!T9013HK8 Table value {4}"}]
[]
[null,null,null,"x-axis"]
[]
[null,null,null,"MFIs (S.121 + S.122 + S.123)","Government (S.13)",null,"Investment funds (S.124)","Other financial intermediaries (excl. investment institutions) (S.125 + S.126 + S.127)","Insurance corporations (S.128)","Pension funds (S.129)","Non-financial corporations (S.11)",null,"Households (S.14+S.15)","Total all sectors"]
[null,null,null,null,"Central government (S.1311)","Other government (S.1312 + S.1313 + S.1314)",null,null,null,null,"Non-financial private corporations","Non-financial public corporations"]
[]
[null,null,null,"010","020","030","040","050","060","070","080","090","100","110",null,null,null,{"$f":"Show!$B$22&\"T9013HK8 Rows {\"&COLUMN($C$1)&\"}\"&Index!$E$26","v":"!T9013HK8 Rows {3}"},{"$f":"Show!$B$22&\"T9013HK8 Columns {\"&COLUMN($D$1)&\"}\"","v":"!T9013HK8 Columns {4}"}]
[null,"y-axis",""]
[null,"Assets",""]
[null,"Loans granted and deposits placed","010"]
[null,"- Maturity <= 1 year","020"]
[null,"- > 1 year maturity <= 2 years","031"]
[null,"- > 2 years maturity <= 5 years","032"]
[null,"- Maturity > 5 years","040"]
[null,"Loans for house purchases",""]
[null,"- Maturity <= 1 year","050"]
[null,"- > 1 year maturity <= 2 years","061"]
[null,"- > 2 years maturity <= 5 years","062"]
[null,"- Maturity > 5 years","070"]
[null,"Loans for consumption (personal)",""]
[null,"- Maturity <= 1 year","080"]
[null,"- > 1 year maturity <= 2 years","091"]
[null,"- > 2 years maturity <= 5 years","092"]
[null,"- Maturity > 5 years","100"]
[null,"Revolving loans","110"]
[null,"Overdrafts","120"]
[null,"Credit card","130"]
[null,"Other loans",""]
[null,"- Maturity <= 1 year","140"]
[null,"- > 1 year maturity <= 2 years","151"]
[null,"- > 2 years maturity <= 5 years","152"]
[null,"- Maturity > 5 years","160"]
[null,null,null,null,null,null,null,null,null,null,null,null,null,null,null,null,null,{"$f":"Show!$B$22&Show!$B$22&\"T9013HK8 Rows {\"&COLUMN($C$1)&\"}\"","v":"!!T9013HK8 Rows {3}"},{"$f":"Show!$B$22&Show!$B$22&\"T9013HK8 Columns {\"&COLUMN($N$1)&\"}\"","v":"!!T9013HK8 Columns {14}"}]

{"sheet":"T9017HK1","index":26,"n_rows":42,"n_cols":19,"rows_kept":42,"cut":false,"hidden":true,"merged":[[1,1,1,14],[4,1,4,11],[10,3,11,13],[12,3,14,3],[12,4,12,5],[12,6,14,6],[12,7,14,7],[12,8,14,8],[12,9,14,9],[12,10,12,11],[12,12,14,12],[12,13,14,13],[13,4,14,4],[13,5,14,5],[13,10,14,10],[13,11,14,11]]}
["Back to Index"]
[null,"Table group 6: Write-downs and other price revaluations on securitised and transferred loans"]
[]
[]
[null,"T9017HK1 - Write-downs and other price revaluations on outstanding amounts of securitised loans to FVC ('derecognised') and serviced by reporting agent"]
[]
[null,"Counterparty country/group","Z001",null,null,null,{"$f":"Show!$B$23&\"T9017HK1 Table label {\"&COLUMN($C$1)&\"}\"","v":"!T9017HK1 Table label {3}"},{"$f":"Show!$B$23&\"T9017HK1 Table value {\"&COLUMN($D$1)&\"}\"","v":"!T9017HK1 Table value {4}"}]
[null,"Country of origin SPV, as of 30-06-2023","Z002"]
[null,null,null,null,null,null,{"$f":"Show!$B$23&Show!$B$23&\"T9017HK1 Table label {\"&COLUMN($C$1)&\"}\"","v":"!!T9017HK1 Table label {3}"},{"$f":"Show!$B$23&Show!$B$23&\"T9017HK1 Table value {\"&COLUMN($D$1)&\"}\"","v":"!!T9017HK1 Table value {4}"}]
[]
[null,null,null,"x-axis"]
[]
[null,null,null,"MFIs (S.121 + S.122 + S.123)","Government (S.13)",null,"Investment funds (S.124)","Other financial intermediaries (excl. investment institutions) (S.125 + S.126 + S.127)","Insurance corporations (S.128)","Pension funds (S.129)","Non-financial corporations (S.11)",null,"Households (S.14+S.15)","Total all sectors"]
[null,null,null,null,"Central government (S.1311)","Other government (S.1312 + S.1313 + S.1314)",null,null,null,null,"Non-financial private corporations","Non-financial public corporations"]
[]
[null,null,null,"010","020","030","040","050","060","070","080","090","100","110",null,null,null,{"$f":"Show!$B$23&\"T9017HK1 Rows {\"&COLUMN($C$1)&\"}\"&Index!$E$27","v":"!T9017HK1 Rows {3}"},{"$f":"Show!$B$23&\"T9017HK1 Columns {\"&COLUMN($D$1)&\"}\"","v":"!T9017HK1 Columns {4}"}]
[null,"y-axis",""]
[null,"Assets",""]
[null,"Loans granted and deposits placed","010"]
[null,"- Maturity <= 1 year","020"]
[null,"- > 1 year maturity <= 2 years","031"]
[null,"- > 2 years maturity <= 5 years","032"]
[null,"- Maturity > 5 years","040"]
[null,"Loans for house purchases",""]
[null,"- Maturity <= 1 year","050"]
[null,"- > 1 year maturity <= 2 years","061"]
[null,"- > 2 years maturity <= 5 years","062"]
[null,"- Maturity > 5 years","070"]
[null,"Loans for consumption (personal)",""]
[null,"- Maturity <= 1 year","080"]
[null,"- > 1 year maturity <= 2 years","091"]
[null,"- > 2 years maturity <= 5 years","092"]
[null,"- Maturity > 5 years","100"]
[null,"Revolving loans","110"]
[null,"Overdrafts","120"]
[null,"Credit card","130"]
[null,"Other loans",""]
[null,"- Maturity <= 1 year","140"]
[null,"- > 1 year maturity <= 2 years","151"]
[null,"- > 2 years maturity <= 5 years","152"]
[null,"- Maturity > 5 years","160"]
[null,null,null,null,null,null,null,null,null,null,null,null,null,null,null,null,null,{"$f":"Show!$B$23&Show!$B$23&\"T9017HK1 Rows {\"&COLUMN($C$1)&\"}\"","v":"!!T9017HK1 Rows {3}"},{"$f":"Show!$B$23&Show!$B$23&\"T9017HK1 Columns {\"&COLUMN($N$1)&\"}\"","v":"!!T9017HK1 Columns {14}"}]

{"sheet":"T9017HK2","index":27,"n_rows":42,"n_cols":19,"rows_kept":42,"cut":false,"hidden":true,"merged":[[1,1,1,14],[4,1,4,11],[10,3,11,13],[12,3,14,3],[12,4,12,5],[12,6,14,6],[12,7,14,7],[12,8,14,8],[12,9,14,9],[12,10,12,11],[12,12,14,12],[12,13,14,13],[13,4,14,4],[13,5,14,5],[13,10,14,10],[13,11,14,11]]}
["Back to Index"]
[null,"Table group 6: Write-downs and other price revaluations on securitised and transferred loans"]
[]
[]
[null,"T9017HK2 - Write-downs and other price revaluations on outstanding amounts of securitised loans not transferred to FVC ('not derecognised')"]
[]
[null,"Counterparty country/group","Z001",null,null,null,{"$f":"Show!$B$24&\"T9017HK2 Table label {\"&COLUMN($C$1)&\"}\"","v":"!T9017HK2 Table label {3}"},{"$f":"Show!$B$24&\"T9017HK2 Table value {\"&COLUMN($D$1)&\"}\"","v":"!T9017HK2 Table value {4}"}]
[null,"Country of origin SPV, as of 30-06-2023","Z002"]
[null,null,null,null,null,null,{"$f":"Show!$B$24&Show!$B$24&\"T9017HK2 Table label {\"&COLUMN($C$1)&\"}\"","v":"!!T9017HK2 Table label {3}"},{"$f":"Show!$B$24&Show!$B$24&\"T9017HK2 Table value {\"&COLUMN($D$1)&\"}\"","v":"!!T9017HK2 Table value {4}"}]
[]
[null,null,null,"x-axis"]
[]
[null,null,null,"MFIs (S.121 + S.122 + S.123)","Government (S.13)",null,"Investment funds (S.124)","Other financial intermediaries (excl. investment institutions) (S.125 + S.126 + S.127)","Insurance corporations (S.128)","Pension funds (S.129)","Non-financial corporations (S.11)",null,"Households (S.14+S.15)","Total all sectors"]
[null,null,null,null,"Central government (S.1311)","Other government (S.1312 + S.1313 + S.1314)",null,null,null,null,"Non-financial private corporations","Non-financial public corporations"]
[]
[null,null,null,"010","020","030","040","050","060","070","080","090","100","110",null,null,null,{"$f":"Show!$B$24&\"T9017HK2 Rows {\"&COLUMN($C$1)&\"}\"&Index!$E$28","v":"!T9017HK2 Rows {3}"},{"$f":"Show!$B$24&\"T9017HK2 Columns {\"&COLUMN($D$1)&\"}\"","v":"!T9017HK2 Columns {4}"}]
[null,"y-axis",""]
[null,"Assets",""]
[null,"Loans granted and deposits placed","010"]
[null,"- Maturity <= 1 year","020"]
[null,"- > 1 year maturity <= 2 years","031"]
[null,"- > 2 years maturity <= 5 years","032"]
[null,"- Maturity > 5 years","040"]
[null,"Loans for house purchases",""]
[null,"- Maturity <= 1 year","050"]
[null,"- > 1 year maturity <= 2 years","061"]
[null,"- > 2 years maturity <= 5 years","062"]
[null,"- Maturity > 5 years","070"]
[null,"Loans for consumption (personal)",""]
[null,"- Maturity <= 1 year","080"]
[null,"- > 1 year maturity <= 2 years","091"]
[null,"- > 2 years maturity <= 5 years","092"]
[null,"- Maturity > 5 years","100"]
[null,"Revolving loans","110"]
[null,"Overdrafts","120"]
[null,"Credit card","130"]
[null,"Other loans",""]
[null,"- Maturity <= 1 year","140"]
[null,"- > 1 year maturity <= 2 years","151"]
[null,"- > 2 years maturity <= 5 years","152"]
[null,"- Maturity > 5 years","160"]
[null,null,null,null,null,null,null,null,null,null,null,null,null,null,null,null,null,{"$f":"Show!$B$24&Show!$B$24&\"T9017HK2 Rows {\"&COLUMN($C$1)&\"}\"","v":"!!T9017HK2 Rows {3}"},{"$f":"Show!$B$24&Show!$B$24&\"T9017HK2 Columns {\"&COLUMN($N$1)&\"}\"","v":"!!T9017HK2 Columns {14}"}]

{"sheet":"T9017HK3","index":28,"n_rows":43,"n_cols":19,"rows_kept":43,"cut":false,"hidden":true,"merged":[[1,1,1,14],[4,1,4,11],[11,3,12,13],[13,3,15,3],[13,4,13,5],[13,6,15,6],[13,7,15,7],[13,8,15,8],[13,9,15,9],[13,10,13,11],[13,12,15,12],[13,13,15,13],[14,4,15,4],[14,5,15,5],[14,10,15,10],[14,11,15,11]]}
["Back to Index"]
[null,"Table group 6: Write-downs and other price revaluations on securitised and transferred loans"]
[]
[]
[null,"T9017HK3 - Write-downs and other price revaluations on outstanding amounts of loans transferred to non-FVCs. With impact on reported stock"]
[]
[null,"Counterparty country/group","Z001",null,null,null,{"$f":"Show!$B$25&\"T9017HK3 Table label {\"&COLUMN($C$1)&\"}\"","v":"!T9017HK3 Table label {3}"},{"$f":"Show!$B$25&\"T9017HK3 Table value {\"&COLUMN($D$1)&\"}\"","v":"!T9017HK3 Table value {4}"}]
[null,"Counterparty sector of transfer","Z002"]
[null,"Counterparty countrygroup of transfer","Z003"]
[null,null,null,null,null,null,{"$f":"Show!$B$25&Show!$B$25&\"T9017HK3 Table label {\"&COLUMN($C$1)&\"}\"","v":"!!T9017HK3 Table label {3}"},{"$f":"Show!$B$25&Show!$B$25&\"T9017HK3 Table value {\"&COLUMN($D$1)&\"}\"","v":"!!T9017HK3 Table value {4}"}]
[]
[null,null,null,"x-axis"]
[]
[null,null,null,"MFIs (S.121 + S.122 + S.123)","Government (S.13)",null,"Investment funds (S.124)","Other financial intermediaries (excl. investment institutions) (S.125 + S.126 + S.127)","Insurance corporations (S.128)","Pension funds (S.129)","Non-financial corporations (S.11)",null,"Households (S.14+S.15)","Total all sectors"]
[null,null,null,null,"Central government (S.1311)","Other government (S.1312 + S.1313 + S.1314)",null,null,null,null,"Non-financial private corporations","Non-financial public corporations"]
[]
[null,null,null,"010","020","030","040","050","060","070","080","090","100","110",null,null,null,{"$f":"Show!$B$25&\"T9017HK3 Rows {\"&COLUMN($C$1)&\"}\"&Index!$E$29","v":"!T9017HK3 Rows {3}"},{"$f":"Show!$B$25&\"T9017HK3 Columns {\"&COLUMN($D$1)&\"}\"","v":"!T9017HK3 Columns {4}"}]
[null,"y-axis",""]
[null,"Assets",""]
[null,"Loans granted and deposits placed","010"]
[null,"- Maturity <= 1 year","020"]
[null,"- > 1 year maturity <= 2 years","031"]
[null,"- > 2 years maturity <= 5 years","032"]
[null,"- Maturity > 5 years","040"]
[null,"Loans for house purchases",""]
[null,"- Maturity <= 1 year","050"]
[null,"- > 1 year maturity <= 2 years","061"]
[null,"- > 2 years maturity <= 5 years","062"]
[null,"- Maturity > 5 years","070"]
[null,"Loans for consumption (personal)",""]
[null,"- Maturity <= 1 year","080"]
[null,"- > 1 year maturity <= 2 years","091"]
[null,"- > 2 years maturity <= 5 years","092"]
[null,"- Maturity > 5 years","100"]
[null,"Revolving loans","110"]
[null,"Overdrafts","120"]
[null,"Credit card","130"]
[null,"Other loans",""]
[null,"- Maturity <= 1 year","140"]
[null,"- > 1 year maturity <= 2 years","151"]
[null,"- > 2 years maturity <= 5 years","152"]
[null,"- Maturity > 5 years","160"]
[null,null,null,null,null,null,null,null,null,null,null,null,null,null,null,null,null,{"$f":"Show!$B$25&Show!$B$25&\"T9017HK3 Rows {\"&COLUMN($C$1)&\"}\"","v":"!!T9017HK3 Rows {3}"},{"$f":"Show!$B$25&Show!$B$25&\"T9017HK3 Columns {\"&COLUMN($N$1)&\"}\"","v":"!!T9017HK3 Columns {14}"}]

{"sheet":"T9017HK4","index":29,"n_rows":43,"n_cols":19,"rows_kept":43,"cut":false,"hidden":true,"merged":[[1,1,1,14],[4,1,4,11],[11,3,12,13],[13,3,15,3],[13,4,13,5],[13,6,15,6],[13,7,15,7],[13,8,15,8],[13,9,15,9],[13,10,13,11],[13,12,15,12],[13,13,15,13],[14,4,15,4],[14,5,15,5],[14,10,15,10],[14,11,15,11]]}
["Back to Index"]
[null,"Table group 6: Write-downs and other price revaluations on securitised and transferred loans"]
[]
[]
[null,"T9017HK4 - Write-downs and other price revaluations on outstanding amounts of loans transferred to non-FVCs. Without impact on reported stock"]
[]
[null,"Counterparty country/group","Z001",null,null,null,{"$f":"Show!$B$26&\"T9017HK4 Table label {\"&COLUMN($C$1)&\"}\"","v":"!T9017HK4 Table label {3}"},{"$f":"Show!$B$26&\"T9017HK4 Table value {\"&COLUMN($D$1)&\"}\"","v":"!T9017HK4 Table value {4}"}]
[null,"Counterparty sector of transfer","Z002"]
[null,"Counterparty countrygroup of transfer","Z003"]
[null,null,null,null,null,null,{"$f":"Show!$B$26&Show!$B$26&\"T9017HK4 Table label {\"&COLUMN($C$1)&\"}\"","v":"!!T9017HK4 Table label {3}"},{"$f":"Show!$B$26&Show!$B$26&\"T9017HK4 Table value {\"&COLUMN($D$1)&\"}\"","v":"!!T9017HK4 Table value {4}"}]
[]
[null,null,null,"x-axis"]
[]
[null,null,null,"MFIs (S.121 + S.122 + S.123)","Government (S.13)",null,"Investment funds (S.124)","Other financial intermediaries (excl. investment institutions) (S.125 + S.126 + S.127)","Insurance corporations (S.128)","Pension funds (S.129)","Non-financial corporations (S.11)",null,"Households (S.14+S.15)","Total all sectors"]
[null,null,null,null,"Central government (S.1311)","Other government (S.1312 + S.1313 + S.1314)",null,null,null,null,"Non-financial private corporations","Non-financial public corporations"]
[]
[null,null,null,"010","020","030","040","050","060","070","080","090","100","110",null,null,null,{"$f":"Show!$B$26&\"T9017HK4 Rows {\"&COLUMN($C$1)&\"}\"&Index!$E$30","v":"!T9017HK4 Rows {3}"},{"$f":"Show!$B$26&\"T9017HK4 Columns {\"&COLUMN($D$1)&\"}\"","v":"!T9017HK4 Columns {4}"}]
[null,"y-axis",""]
[null,"Assets",""]
[null,"Loans granted and deposits placed","010"]
[null,"- Maturity <= 1 year","020"]
[null,"- > 1 year maturity <= 2 years","031"]
[null,"- > 2 years maturity <= 5 years","032"]
[null,"- Maturity > 5 years","040"]
[null,"Loans for house purchases",""]
[null,"- Maturity <= 1 year","050"]
[null,"- > 1 year maturity <= 2 years","061"]
[null,"- > 2 years maturity <= 5 years","062"]
[null,"- Maturity > 5 years","070"]
[null,"Loans for consumption (personal)",""]
[null,"- Maturity <= 1 year","080"]
[null,"- > 1 year maturity <= 2 years","091"]
[null,"- > 2 years maturity <= 5 years","092"]
[null,"- Maturity > 5 years","100"]
[null,"Revolving loans","110"]
[null,"Overdrafts","120"]
[null,"Credit card","130"]
[null,"Other loans",""]
[null,"- Maturity <= 1 year","140"]
[null,"- > 1 year maturity <= 2 years","151"]
[null,"- > 2 years maturity <= 5 years","152"]
[null,"- Maturity > 5 years","160"]
[null,null,null,null,null,null,null,null,null,null,null,null,null,null,null,null,null,{"$f":"Show!$B$26&Show!$B$26&\"T9017HK4 Rows {\"&COLUMN($C$1)&\"}\"","v":"!!T9017HK4 Rows {3}"},{"$f":"Show!$B$26&Show!$B$26&\"T9017HK4 Columns {\"&COLUMN($N$1)&\"}\"","v":"!!T9017HK4 Columns {14}"}]